Department family,Entity,Date,Expense Type,Expense area,Supplier,Transaction number,AP Amount (�)
Department of Health,NHS Sheffield CCG,31/07/2017,Hcare Srv Rec Fdtn Trust-CQUIN,ACUTE CHILDRENS SERVICES,SHEFFIELD CHILDRENS NHS FOUNDATION TRUST,17882525,"32,706.00 "
Department of Health,NHS Sheffield CCG,31/07/2017,Hcare Srv Rec Fdtn Trust-CQUIN,COMMUNITY SERVICES,SHEFFIELD CHILDRENS NHS FOUNDATION TRUST,17882525,"3,728.00 "
Department of Health,NHS Sheffield CCG,31/07/2017,Hcare Srv Rec Fdtn Trust-Contract Baseline,ACUTE CHILDRENS SERVICES,SHEFFIELD CHILDRENS NHS FOUNDATION TRUST,17882525,"235,977.00 "
Department of Health,NHS Sheffield CCG,31/07/2017,Hcare Srv Rec Fdtn Trust-Contract Baseline,CHILD AND ADOLESCENT MENTAL HEALTH,SHEFFIELD CHILDRENS NHS FOUNDATION TRUST,17882525,"367,086.00 "
Department of Health,NHS Sheffield CCG,31/07/2017,Hcare Srv Rec Fdtn Trust-Contract Baseline,COMMUNITY SERVICES,SHEFFIELD CHILDRENS NHS FOUNDATION TRUST,17882525,"298,241.00 "
Department of Health,NHS Sheffield CCG,31/07/2017,Hcare Srv Rec Fdtn Trust-Contract Baseline,HIGH COST DRUGS,SHEFFIELD CHILDRENS NHS FOUNDATION TRUST,17882525,"40,649.00 "
Department of Health,NHS Sheffield CCG,31/07/2017,Hcare Srv Rec Fdtn Trust-Contract Baseline,MENTAL HEALTH CONTRACTS,SHEFFIELD CHILDRENS NHS FOUNDATION TRUST,17882525,"5,277.00 "
Department of Health,NHS Sheffield CCG,31/07/2017,Hcare Srv Rec Fdtn Trust-Contract Baseline,PLANNED CARE,SHEFFIELD CHILDRENS NHS FOUNDATION TRUST,17882525,"965,735.00 "
Department of Health,NHS Sheffield CCG,31/07/2017,Hcare Srv Rec Fdtn Trust-Contract Baseline,SAFEGUARDING,SHEFFIELD CHILDRENS NHS FOUNDATION TRUST,17882525,"29,800.00 "
Department of Health,NHS Sheffield CCG,31/07/2017,Hcare Srv Rec Fdtn Trust-Contract Baseline,URGENT CARE,SHEFFIELD CHILDRENS NHS FOUNDATION TRUST,17882525,"988,358.00 "
Department of Health,NHS Sheffield CCG,31/07/2017,Clinical&Medical-Commercial Sector,PATIENT TRANSPORT,ARRIVA TRANSPORT SOLUTIONS,17882535,"99,991.33 "
Department of Health,NHS Sheffield CCG,31/07/2017,Cont Care-Physical Disab (65+),CHC ADULT FULLY FUNDED,ABBEYCARE NURSING,17882823,"49,782.90 "
Department of Health,NHS Sheffield CCG,31/07/2017,C&M-APMS DES Extended Hours Access,LOCAL ENHANCED SERVICES,PRIMARY CARE SHEFFIELD LTD,17885213,"289,935.17 "
Department of Health,NHS Sheffield CCG,31/07/2017,Hcare Srv Rec NHS Trust-Contract Baseline,AMBULANCE SERVICES,YORKSHIRE AMBULANCE SERVICE NHS TRUST,17885298,"123,979.00 "
Department of Health,NHS Sheffield CCG,31/07/2017,Hcare Srv Rec NHS Trust-Contract Baseline,NHS 111,YORKSHIRE AMBULANCE SERVICE NHS TRUST,17885305,"89,944.00 "
Department of Health,NHS Sheffield CCG,31/07/2017,Hcare Srv Rec NHS Trust-Contract Baseline,AMBULANCE SERVICES,YORKSHIRE AMBULANCE SERVICE NHS TRUST,17885310,"1,440,139.00 "
Department of Health,NHS Sheffield CCG,31/07/2017,Hcare Srv Rec NHS Trust-CQUIN,AMBULANCE SERVICES,YORKSHIRE AMBULANCE SERVICE NHS TRUST,17885352,"27,566.00 "
Department of Health,NHS Sheffield CCG,31/07/2017,Hcare Srv Rec NHS Trust-Contract Baseline,PATIENT TRANSPORT,YORKSHIRE AMBULANCE SERVICE NHS TRUST,17885420,"180,981.40 "
Department of Health,NHS Sheffield CCG,31/07/2017,C&M-GMS LES Equitable Funding,LOCAL ENHANCED SERVICES,PORTER BROOK MEDICAL CENTRE,17890999,"26,665.00 "
Department of Health,NHS Sheffield CCG,31/07/2017,Hcare Srv Rec NHS Trust-Contract Baseline,ACUTE COMMISSIONING,LEEDS TEACHING HOSPITALS NHS TRUST,17925111,"61,809.00 "
Department of Health,NHS Sheffield CCG,31/07/2017,Hcare Srv Rec Fdtn Trust-Contract Baseline,ACUTE COMMISSIONING,ROTHERHAM NHS FOUNDATION TRUST,17925120,"429,401.00 "
Department of Health,NHS Sheffield CCG,31/07/2017,Clinical&Medical-Independent Sector,ACUTE COMMISSIONING,BMI HEALTHCARE COLLECTIONS,17925155,"77,530.74 "
Department of Health,NHS Sheffield CCG,31/07/2017,Hcare Srv Rec Fdtn Trust-Contract Baseline,ACUTE COMMISSIONING,SHEFFIELD TEACHING HOSPITALS NHS FOUNDATION TRUST,17925173,"1,101,688.00 "
Department of Health,NHS Sheffield CCG,31/07/2017,Hcare Srv Rec Fdtn Trust-Contract Baseline,ACUTE COMMISSIONING,SHEFFIELD TEACHING HOSPITALS NHS FOUNDATION TRUST,17925185,"316,656.00 "
Department of Health,NHS Sheffield CCG,31/07/2017,Hcare Srv Rec Fdtn Trust-Contract Baseline,ACUTE COMMISSIONING,SHEFFIELD TEACHING HOSPITALS NHS FOUNDATION TRUST,17925196,"26,312,895.00 "
Department of Health,NHS Sheffield CCG,31/07/2017,Hcare Srv Rec Fdtn Trust-Contract Baseline,ACUTE COMMISSIONING,SHEFFIELD TEACHING HOSPITALS NHS FOUNDATION TRUST,17925203,"3,400,000.00 "
Department of Health,NHS Sheffield CCG,31/07/2017,C&M-GMS IT Comm Servs -GP Practices,LOCAL ENHANCED SERVICES,SHEFFIELD HEALTH & SOCIAL CARE NHS FOUNDATION TRUST,17925209,"40,401.97 "
Department of Health,NHS Sheffield CCG,31/07/2017,C&M-GMS IT Comm Servs -GP Practices,PRIMARY CARE IT,KIER BUSINESS SERVICES LTD,17925232,"105,622.80 "
Department of Health,NHS Sheffield CCG,31/07/2017,FM Computer Contracts,BUSINESS INFORMATICS,KIER BUSINESS SERVICES LTD,17925232,"37,381.20 "
Department of Health,NHS Sheffield CCG,31/07/2017,Cont Care- Prior Year Payments,CHC ADULT FULLY FUNDED,SIMPSON MILLAR SOLICITORS,17934767,"31,705.64 "
Department of Health,NHS Sheffield CCG,31/07/2017,Cont Care- Prior Year Payments,CHC ADULT FULLY FUNDED,BARLOW ROBBINS LLP,17934806,"26,101.64 "
Department of Health,NHS Sheffield CCG,31/07/2017,Hcare Srv Rec Fdtn Trust-Contract Baseline,ACUTE COMMISSIONING,DONCASTER AND BASSETLAW HOSPITALS NHS FOUNDATION TRUST,17934828,"34,787.00 "
Department of Health,NHS Sheffield CCG,31/07/2017,C&M-PMS Contract Value,PRC DELEGATED CO-COMMISSIONING,AVENUE MEDICAL CENTRE SHEFFIELD,17966924,"53,794.80 "
Department of Health,NHS Sheffield CCG,31/07/2017,C&M-PMS DES Extended Hours Access,PRC DELEGATED CO-COMMISSIONING,AVENUE MEDICAL CENTRE SHEFFIELD,17966924,"3,516.90 "
Department of Health,NHS Sheffield CCG,31/07/2017,C&M-PMS DES UNPLANNED ADMISSIONS,PRC DELEGATED CO-COMMISSIONING,AVENUE MEDICAL CENTRE SHEFFIELD,17966924,"5,918.22 "
Department of Health,NHS Sheffield CCG,31/07/2017,C&M-PMS Out of Hours Opt Outs,PRC DELEGATED CO-COMMISSIONING,AVENUE MEDICAL CENTRE SHEFFIELD,17966924,79.21 
Department of Health,NHS Sheffield CCG,31/07/2017,C&M-PMS PCO Other,PRC DELEGATED CO-COMMISSIONING,AVENUE MEDICAL CENTRE SHEFFIELD,17966924,905.20 
Department of Health,NHS Sheffield CCG,31/07/2017,C&M-PMS Prem Notional Rent,PRC DELEGATED CO-COMMISSIONING,AVENUE MEDICAL CENTRE SHEFFIELD,17966924,"5,546.67 "
Department of Health,NHS Sheffield CCG,31/07/2017,C&M-PMS Prem Rates,PRC DELEGATED CO-COMMISSIONING,AVENUE MEDICAL CENTRE SHEFFIELD,17966924,"1,750.00 "
Department of Health,NHS Sheffield CCG,31/07/2017,C&M-PMS Prem Water Rates,PRC DELEGATED CO-COMMISSIONING,AVENUE MEDICAL CENTRE SHEFFIELD,17966924,197.45 
Department of Health,NHS Sheffield CCG,31/07/2017,C&M-PMS QOF Aspiration,PRC DELEGATED CO-COMMISSIONING,AVENUE MEDICAL CENTRE SHEFFIELD,17966924,"6,441.78 "
Department of Health,NHS Sheffield CCG,31/07/2017,C&M-PMS Contract Value,PRC DELEGATED CO-COMMISSIONING,ABBEY LANE SURGERY,17966926,"22,111.70 "
Department of Health,NHS Sheffield CCG,31/07/2017,C&M-PMS DES Extended Hours Access,PRC DELEGATED CO-COMMISSIONING,ABBEY LANE SURGERY,17966926,"1,480.58 "
Department of Health,NHS Sheffield CCG,31/07/2017,C&M-PMS Funding Differential Review,PRC DELEGATED CO-COMMISSIONING,ABBEY LANE SURGERY,17966926,"1,105.08 "
Department of Health,NHS Sheffield CCG,31/07/2017,C&M-PMS Out of Hours Opt Outs,PRC DELEGATED CO-COMMISSIONING,ABBEY LANE SURGERY,17966926,27.87 
Department of Health,NHS Sheffield CCG,31/07/2017,C&M-PMS PCO Other,PRC DELEGATED CO-COMMISSIONING,ABBEY LANE SURGERY,17966926,769.00 
Department of Health,NHS Sheffield CCG,31/07/2017,C&M-PMS Prem Notional Rent,PRC DELEGATED CO-COMMISSIONING,ABBEY LANE SURGERY,17966926,"2,122.92 "
Department of Health,NHS Sheffield CCG,31/07/2017,C&M-PMS Prem Rates,PRC DELEGATED CO-COMMISSIONING,ABBEY LANE SURGERY,17966926,"1,400.00 "
Department of Health,NHS Sheffield CCG,31/07/2017,C&M-PMS QOF Aspiration,PRC DELEGATED CO-COMMISSIONING,ABBEY LANE SURGERY,17966926,"3,210.12 "
Department of Health,NHS Sheffield CCG,31/07/2017,C&M-PMS Contract Value,PRC DELEGATED CO-COMMISSIONING,BARNSLEY ROAD SURGERY,17966928,"21,406.11 "
Department of Health,NHS Sheffield CCG,31/07/2017,C&M-PMS DES Extended Hours Access,PRC DELEGATED CO-COMMISSIONING,BARNSLEY ROAD SURGERY,17966928,"1,272.05 "
Department of Health,NHS Sheffield CCG,31/07/2017,C&M-PMS Funding Differential Review,PRC DELEGATED CO-COMMISSIONING,BARNSLEY ROAD SURGERY,17966928,370.25 
Department of Health,NHS Sheffield CCG,31/07/2017,C&M-PMS PCO Other,PRC DELEGATED CO-COMMISSIONING,BARNSLEY ROAD SURGERY,17966928,769.00 
Department of Health,NHS Sheffield CCG,31/07/2017,C&M-PMS Prem Notional Rent,PRC DELEGATED CO-COMMISSIONING,BARNSLEY ROAD SURGERY,17966928,"2,652.17 "
Department of Health,NHS Sheffield CCG,31/07/2017,C&M-PMS Prem Rates,PRC DELEGATED CO-COMMISSIONING,BARNSLEY ROAD SURGERY,17966928,"1,258.00 "
Department of Health,NHS Sheffield CCG,31/07/2017,C&M-PMS QOF Aspiration,PRC DELEGATED CO-COMMISSIONING,BARNSLEY ROAD SURGERY,17966928,"2,500.90 "
Department of Health,NHS Sheffield CCG,31/07/2017,C&M-PMS Contract Value,PRC DELEGATED CO-COMMISSIONING,BIRLEY HEALTH CENTRE,17966929,"(6,279.04)"
Department of Health,NHS Sheffield CCG,31/07/2017,C&M-PMS DES Minor Surgery,PRC DELEGATED CO-COMMISSIONING,BIRLEY HEALTH CENTRE,17966929,"(4,470.00)"
Department of Health,NHS Sheffield CCG,31/07/2017,C&M-PMS Delivery,PRC DELEGATED CO-COMMISSIONING,BIRLEY HEALTH CENTRE,17966929,(905.20)
Department of Health,NHS Sheffield CCG,31/07/2017,C&M-PMS GP Statutory Levy,PRC DELEGATED CO-COMMISSIONING,BIRLEY HEALTH CENTRE,17966929,(254.67)
Department of Health,NHS Sheffield CCG,31/07/2017,C&M-PMS Out of Hours Opt Outs,PRC DELEGATED CO-COMMISSIONING,BIRLEY HEALTH CENTRE,17966929,"(2,879.34)"
Department of Health,NHS Sheffield CCG,31/07/2017,C&M-PMS Prem Notional Rent,PRC DELEGATED CO-COMMISSIONING,BIRLEY HEALTH CENTRE,17966929,"(2,098.73)"
Department of Health,NHS Sheffield CCG,31/07/2017,C&M-PMS Voluntary Levy,PRC DELEGATED CO-COMMISSIONING,BIRLEY HEALTH CENTRE,17966929,(42.45)
Department of Health,NHS Sheffield CCG,31/07/2017,C&M-PMS Contract Value,PRC DELEGATED CO-COMMISSIONING,BIRLEY HEALTH CENTRE,17966930,"60,823.52 "
Department of Health,NHS Sheffield CCG,31/07/2017,C&M-PMS DES Extended Hours Access,PRC DELEGATED CO-COMMISSIONING,BIRLEY HEALTH CENTRE,17966930,"4,019.45 "
Department of Health,NHS Sheffield CCG,31/07/2017,C&M-PMS DES UNPLANNED ADMISSIONS,PRC DELEGATED CO-COMMISSIONING,BIRLEY HEALTH CENTRE,17966930,"6,475.70 "
Department of Health,NHS Sheffield CCG,31/07/2017,C&M-PMS Funding Differential Review,PRC DELEGATED CO-COMMISSIONING,BIRLEY HEALTH CENTRE,17966930,"2,653.00 "
Department of Health,NHS Sheffield CCG,31/07/2017,C&M-PMS Out of Hours Opt Outs,PRC DELEGATED CO-COMMISSIONING,BIRLEY HEALTH CENTRE,17966930,78.77 
Department of Health,NHS Sheffield CCG,31/07/2017,C&M-PMS PCO Other,PRC DELEGATED CO-COMMISSIONING,BIRLEY HEALTH CENTRE,17966930,905.20 
Department of Health,NHS Sheffield CCG,31/07/2017,C&M-PMS Prem Notional Rent,PRC DELEGATED CO-COMMISSIONING,BIRLEY HEALTH CENTRE,17966930,"7,967.86 "
Department of Health,NHS Sheffield CCG,31/07/2017,C&M-PMS Prem Water Rates,PRC DELEGATED CO-COMMISSIONING,BIRLEY HEALTH CENTRE,17966930,240.12 
Department of Health,NHS Sheffield CCG,31/07/2017,C&M-PMS QOF Aspiration,PRC DELEGATED CO-COMMISSIONING,BIRLEY HEALTH CENTRE,17966930,"8,879.62 "
Department of Health,NHS Sheffield CCG,31/07/2017,C&M-PMS Contract Value,PRC DELEGATED CO-COMMISSIONING,BURNCROSS SURGERY,17966931,"(12,116.27)"
Department of Health,NHS Sheffield CCG,31/07/2017,C&M-PMS DES Minor Surgery,PRC DELEGATED CO-COMMISSIONING,BURNCROSS SURGERY,17966931,"(3,030.00)"
Department of Health,NHS Sheffield CCG,31/07/2017,C&M-PMS GP Statutory Levy,PRC DELEGATED CO-COMMISSIONING,BURNCROSS SURGERY,17966931,(468.12)
Department of Health,NHS Sheffield CCG,31/07/2017,C&M-PMS Voluntary Levy,PRC DELEGATED CO-COMMISSIONING,BURNCROSS SURGERY,17966931,(78.02)
Department of Health,NHS Sheffield CCG,31/07/2017,C&M-PMS Contract Value,PRC DELEGATED CO-COMMISSIONING,DR MEHROTRA & PARTNER,17966938,"27,177.94 "
Department of Health,NHS Sheffield CCG,31/07/2017,C&M-PMS DES Extended Hours Access,PRC DELEGATED CO-COMMISSIONING,DR MEHROTRA & PARTNER,17966938,"1,620.23 "
Department of Health,NHS Sheffield CCG,31/07/2017,C&M-PMS DES UNPLANNED ADMISSIONS,PRC DELEGATED CO-COMMISSIONING,DR MEHROTRA & PARTNER,17966938,"2,620.31 "
Department of Health,NHS Sheffield CCG,31/07/2017,C&M-PMS Funding Differential Review,PRC DELEGATED CO-COMMISSIONING,DR MEHROTRA & PARTNER,17966938,885.92 
Department of Health,NHS Sheffield CCG,31/07/2017,C&M-PMS PCO Other,PRC DELEGATED CO-COMMISSIONING,DR MEHROTRA & PARTNER,17966938,769.00 
Department of Health,NHS Sheffield CCG,31/07/2017,C&M-PMS Prem Notional Rent,PRC DELEGATED CO-COMMISSIONING,DR MEHROTRA & PARTNER,17966938,"5,157.33 "
Department of Health,NHS Sheffield CCG,31/07/2017,C&M-PMS Prem Rates,PRC DELEGATED CO-COMMISSIONING,DR MEHROTRA & PARTNER,17966938,"2,644.00 "
Department of Health,NHS Sheffield CCG,31/07/2017,C&M-PMS Prem Water Rates,PRC DELEGATED CO-COMMISSIONING,DR MEHROTRA & PARTNER,17966938,491.27 
Department of Health,NHS Sheffield CCG,31/07/2017,C&M-PMS QOF Aspiration,PRC DELEGATED CO-COMMISSIONING,DR MEHROTRA & PARTNER,17966938,"3,389.93 "
Department of Health,NHS Sheffield CCG,31/07/2017,C&M-PMS Contract Value,PRC DELEGATED CO-COMMISSIONING,DR MILNER & PARTNERS,17966939,"71,337.13 "
Department of Health,NHS Sheffield CCG,31/07/2017,C&M-PMS DES Extended Hours Access,PRC DELEGATED CO-COMMISSIONING,DR MILNER & PARTNERS,17966939,"4,991.30 "
Department of Health,NHS Sheffield CCG,31/07/2017,C&M-PMS Funding Differential Review,PRC DELEGATED CO-COMMISSIONING,DR MILNER & PARTNERS,17966939,"4,581.42 "
Department of Health,NHS Sheffield CCG,31/07/2017,C&M-PMS Out of Hours Opt Outs,PRC DELEGATED CO-COMMISSIONING,DR MILNER & PARTNERS,17966939,145.38 
Department of Health,NHS Sheffield CCG,31/07/2017,C&M-PMS PCO Other,PRC DELEGATED CO-COMMISSIONING,DR MILNER & PARTNERS,17966939,"4,189.60 "
Department of Health,NHS Sheffield CCG,31/07/2017,C&M-PMS Prem Actual Rent,PRC DELEGATED CO-COMMISSIONING,DR MILNER & PARTNERS,17966939,"11,382.00 "
Department of Health,NHS Sheffield CCG,31/07/2017,C&M-PMS Prem Notional Rent,PRC DELEGATED CO-COMMISSIONING,DR MILNER & PARTNERS,17966939,"4,221.58 "
Department of Health,NHS Sheffield CCG,31/07/2017,C&M-PMS Prem Rates,PRC DELEGATED CO-COMMISSIONING,DR MILNER & PARTNERS,17966939,"3,842.00 "
Department of Health,NHS Sheffield CCG,31/07/2017,C&M-PMS Prem Water Rates,PRC DELEGATED CO-COMMISSIONING,DR MILNER & PARTNERS,17966939,628.61 
Department of Health,NHS Sheffield CCG,31/07/2017,C&M-PMS QOF Aspiration,PRC DELEGATED CO-COMMISSIONING,DR MILNER & PARTNERS,17966939,"7,385.62 "
Department of Health,NHS Sheffield CCG,31/07/2017,C&M-PMS Contract Value,PRC DELEGATED CO-COMMISSIONING,DYKES HALL MEDICAL CENTRE,17966941,"(7,147.94)"
Department of Health,NHS Sheffield CCG,31/07/2017,C&M-PMS DES Minor Surgery,PRC DELEGATED CO-COMMISSIONING,DYKES HALL MEDICAL CENTRE,17966941,(680.00)
Department of Health,NHS Sheffield CCG,31/07/2017,C&M-PMS Delivery,PRC DELEGATED CO-COMMISSIONING,DYKES HALL MEDICAL CENTRE,17966941,"(4,526.00)"
Department of Health,NHS Sheffield CCG,31/07/2017,C&M-PMS GP Statutory Levy,PRC DELEGATED CO-COMMISSIONING,DYKES HALL MEDICAL CENTRE,17966941,(292.08)
Department of Health,NHS Sheffield CCG,31/07/2017,C&M-PMS Out of Hours Opt Outs,PRC DELEGATED CO-COMMISSIONING,DYKES HALL MEDICAL CENTRE,17966941,"(3,297.48)"
Department of Health,NHS Sheffield CCG,31/07/2017,C&M-PMS Voluntary Levy,PRC DELEGATED CO-COMMISSIONING,DYKES HALL MEDICAL CENTRE,17966941,(48.68)
Department of Health,NHS Sheffield CCG,31/07/2017,C&M-PMS Contract Value,PRC DELEGATED CO-COMMISSIONING,DYKES HALL MEDICAL CENTRE,17966942,"69,905.61 "
Department of Health,NHS Sheffield CCG,31/07/2017,C&M-PMS DES Extended Hours Access,PRC DELEGATED CO-COMMISSIONING,DYKES HALL MEDICAL CENTRE,17966942,"4,609.40 "
Department of Health,NHS Sheffield CCG,31/07/2017,C&M-PMS Funding Differential Review,PRC DELEGATED CO-COMMISSIONING,DYKES HALL MEDICAL CENTRE,17966942,199.75 
Department of Health,NHS Sheffield CCG,31/07/2017,C&M-PMS Out of Hours Opt Outs,PRC DELEGATED CO-COMMISSIONING,DYKES HALL MEDICAL CENTRE,17966942,87.99 
Department of Health,NHS Sheffield CCG,31/07/2017,C&M-PMS PCO Locum Adop/Pat/Mat,PRC DELEGATED CO-COMMISSIONING,DYKES HALL MEDICAL CENTRE,17966942,"2,016.00 "
Department of Health,NHS Sheffield CCG,31/07/2017,C&M-PMS Prem Notional Rent,PRC DELEGATED CO-COMMISSIONING,DYKES HALL MEDICAL CENTRE,17966942,"5,300.83 "
Department of Health,NHS Sheffield CCG,31/07/2017,C&M-PMS QOF Aspiration,PRC DELEGATED CO-COMMISSIONING,DYKES HALL MEDICAL CENTRE,17966942,"8,863.43 "
Department of Health,NHS Sheffield CCG,31/07/2017,C&M-PMS Contract Value,PRC DELEGATED CO-COMMISSIONING,EAST BANK MEDICAL CENTRE,17966944,"44,692.31 "
Department of Health,NHS Sheffield CCG,31/07/2017,C&M-PMS DES Extended Hours Access,PRC DELEGATED CO-COMMISSIONING,EAST BANK MEDICAL CENTRE,17966944,"2,649.08 "
Department of Health,NHS Sheffield CCG,31/07/2017,C&M-PMS Funding Differential Review,PRC DELEGATED CO-COMMISSIONING,EAST BANK MEDICAL CENTRE,17966944,"1,588.17 "
Department of Health,NHS Sheffield CCG,31/07/2017,C&M-PMS Out of Hours Opt Outs,PRC DELEGATED CO-COMMISSIONING,EAST BANK MEDICAL CENTRE,17966944,63.32 
Department of Health,NHS Sheffield CCG,31/07/2017,C&M-PMS Prem Notional Rent,PRC DELEGATED CO-COMMISSIONING,EAST BANK MEDICAL CENTRE,17966944,"10,466.67 "
Department of Health,NHS Sheffield CCG,31/07/2017,C&M-PMS Prem Rates,PRC DELEGATED CO-COMMISSIONING,EAST BANK MEDICAL CENTRE,17966944,"9,962.00 "
Department of Health,NHS Sheffield CCG,31/07/2017,C&M-PMS QOF Aspiration,PRC DELEGATED CO-COMMISSIONING,EAST BANK MEDICAL CENTRE,17966944,"5,086.87 "
Department of Health,NHS Sheffield CCG,31/07/2017,C&M-PMS Contract Value,PRC DELEGATED CO-COMMISSIONING,FIRTH PARK SURGERY,17966945,"(8,925.59)"
Department of Health,NHS Sheffield CCG,31/07/2017,C&M-PMS DES Minor Surgery,PRC DELEGATED CO-COMMISSIONING,FIRTH PARK SURGERY,17966945,"(1,390.00)"
Department of Health,NHS Sheffield CCG,31/07/2017,C&M-PMS GP Statutory Levy,PRC DELEGATED CO-COMMISSIONING,FIRTH PARK SURGERY,17966945,(293.91)
Department of Health,NHS Sheffield CCG,31/07/2017,C&M-PMS Out of Hours Opt Outs,PRC DELEGATED CO-COMMISSIONING,FIRTH PARK SURGERY,17966945,"(3,440.86)"
Department of Health,NHS Sheffield CCG,31/07/2017,C&M-PMS PCO Locum Adop/Pat/Mat,PRC DELEGATED CO-COMMISSIONING,FIRTH PARK SURGERY,17966945,"(5,009.84)"
Department of Health,NHS Sheffield CCG,31/07/2017,C&M-PMS Prem Rates,PRC DELEGATED CO-COMMISSIONING,FIRTH PARK SURGERY,17966945,"(1,291.00)"
Department of Health,NHS Sheffield CCG,31/07/2017,C&M-PMS Voluntary Levy,PRC DELEGATED CO-COMMISSIONING,FIRTH PARK SURGERY,17966945,(48.99)
Department of Health,NHS Sheffield CCG,31/07/2017,C&M-PMS Contract Value,PRC DELEGATED CO-COMMISSIONING,FALKLAND HOUSE,17966947,"29,540.03 "
Department of Health,NHS Sheffield CCG,31/07/2017,C&M-PMS DES Extended Hours Access,PRC DELEGATED CO-COMMISSIONING,FALKLAND HOUSE,17966947,"1,903.80 "
Department of Health,NHS Sheffield CCG,31/07/2017,C&M-PMS Funding Differential Review,PRC DELEGATED CO-COMMISSIONING,FALKLAND HOUSE,17966947,"1,255.92 "
Department of Health,NHS Sheffield CCG,31/07/2017,C&M-PMS Out of Hours Opt Outs,PRC DELEGATED CO-COMMISSIONING,FALKLAND HOUSE,17966947,103.91 
Department of Health,NHS Sheffield CCG,31/07/2017,C&M-PMS PCO Other,PRC DELEGATED CO-COMMISSIONING,FALKLAND HOUSE,17966947,769.00 
Department of Health,NHS Sheffield CCG,31/07/2017,C&M-PMS Prem Notional Rent,PRC DELEGATED CO-COMMISSIONING,FALKLAND HOUSE,17966947,"1,802.08 "
Department of Health,NHS Sheffield CCG,31/07/2017,C&M-PMS Prem Rates,PRC DELEGATED CO-COMMISSIONING,FALKLAND HOUSE,17966947,"1,426.00 "
Department of Health,NHS Sheffield CCG,31/07/2017,C&M-PMS Prem Water Rates,PRC DELEGATED CO-COMMISSIONING,FALKLAND HOUSE,17966947,106.05 
Department of Health,NHS Sheffield CCG,31/07/2017,C&M-PMS QOF Aspiration,PRC DELEGATED CO-COMMISSIONING,FALKLAND HOUSE,17966947,"3,036.47 "
Department of Health,NHS Sheffield CCG,31/07/2017,C&M-PMS Contract Value,PRC DELEGATED CO-COMMISSIONING,GLEADLESS MEDICAL CENTRE,17966949,"67,346.75 "
Department of Health,NHS Sheffield CCG,31/07/2017,C&M-PMS Funding Differential Review,PRC DELEGATED CO-COMMISSIONING,GLEADLESS MEDICAL CENTRE,17966949,"1,261.42 "
Department of Health,NHS Sheffield CCG,31/07/2017,C&M-PMS Out of Hours Opt Outs,PRC DELEGATED CO-COMMISSIONING,GLEADLESS MEDICAL CENTRE,17966949,105.40 
Department of Health,NHS Sheffield CCG,31/07/2017,C&M-PMS PCO Other,PRC DELEGATED CO-COMMISSIONING,GLEADLESS MEDICAL CENTRE,17966949,905.20 
Department of Health,NHS Sheffield CCG,31/07/2017,C&M-PMS Prem Notional Rent,PRC DELEGATED CO-COMMISSIONING,GLEADLESS MEDICAL CENTRE,17966949,"6,750.00 "
Department of Health,NHS Sheffield CCG,31/07/2017,C&M-PMS Prem Rates,PRC DELEGATED CO-COMMISSIONING,GLEADLESS MEDICAL CENTRE,17966949,"2,500.00 "
Department of Health,NHS Sheffield CCG,31/07/2017,C&M-PMS Prem Water Rates,PRC DELEGATED CO-COMMISSIONING,GLEADLESS MEDICAL CENTRE,17966949,183.13 
Department of Health,NHS Sheffield CCG,31/07/2017,C&M-PMS QOF Aspiration,PRC DELEGATED CO-COMMISSIONING,GLEADLESS MEDICAL CENTRE,17966949,"8,204.51 "
Department of Health,NHS Sheffield CCG,31/07/2017,C&M-PMS Contract Value,PRC DELEGATED CO-COMMISSIONING,MEADOWHEAD GROUP PRACTICE,17966954,"(9,042.25)"
Department of Health,NHS Sheffield CCG,31/07/2017,C&M-PMS DES Minor Surgery,PRC DELEGATED CO-COMMISSIONING,MEADOWHEAD GROUP PRACTICE,17966954,"(2,615.00)"
Department of Health,NHS Sheffield CCG,31/07/2017,C&M-PMS GP Statutory Levy,PRC DELEGATED CO-COMMISSIONING,MEADOWHEAD GROUP PRACTICE,17966954,(296.37)
Department of Health,NHS Sheffield CCG,31/07/2017,C&M-PMS Out of Hours Opt Outs,PRC DELEGATED CO-COMMISSIONING,MEADOWHEAD GROUP PRACTICE,17966954,"(3,564.14)"
Department of Health,NHS Sheffield CCG,31/07/2017,C&M-PMS Prem Rates,PRC DELEGATED CO-COMMISSIONING,MEADOWHEAD GROUP PRACTICE,17966954,"(3,418.71)"
Department of Health,NHS Sheffield CCG,31/07/2017,C&M-PMS Voluntary Levy,PRC DELEGATED CO-COMMISSIONING,MEADOWHEAD GROUP PRACTICE,17966954,(49.40)
Department of Health,NHS Sheffield CCG,31/07/2017,C&M-PMS Contract Value,PRC DELEGATED CO-COMMISSIONING,MANCHESTER ROAD SURGERY SHEFFIELD,17966956,"29,975.76 "
Department of Health,NHS Sheffield CCG,31/07/2017,C&M-PMS Funding Differential Review,PRC DELEGATED CO-COMMISSIONING,MANCHESTER ROAD SURGERY SHEFFIELD,17966956,446.67 
Department of Health,NHS Sheffield CCG,31/07/2017,C&M-PMS Out of Hours Opt Outs,PRC DELEGATED CO-COMMISSIONING,MANCHESTER ROAD SURGERY SHEFFIELD,17966956,46.21 
Department of Health,NHS Sheffield CCG,31/07/2017,C&M-PMS Prem Cost Rent,PRC DELEGATED CO-COMMISSIONING,MANCHESTER ROAD SURGERY SHEFFIELD,17966956,"3,472.17 "
Department of Health,NHS Sheffield CCG,31/07/2017,C&M-PMS Prem Notional Rent,PRC DELEGATED CO-COMMISSIONING,MANCHESTER ROAD SURGERY SHEFFIELD,17966956,442.92 
Department of Health,NHS Sheffield CCG,31/07/2017,C&M-PMS Prem Rates,PRC DELEGATED CO-COMMISSIONING,MANCHESTER ROAD SURGERY SHEFFIELD,17966956,"1,840.00 "
Department of Health,NHS Sheffield CCG,31/07/2017,C&M-PMS Prem Water Rates,PRC DELEGATED CO-COMMISSIONING,MANCHESTER ROAD SURGERY SHEFFIELD,17966956,103.24 
Department of Health,NHS Sheffield CCG,31/07/2017,C&M-PMS QOF Aspiration,PRC DELEGATED CO-COMMISSIONING,MANCHESTER ROAD SURGERY SHEFFIELD,17966956,"4,335.60 "
Department of Health,NHS Sheffield CCG,31/07/2017,C&M-PMS Contract Value,PRC DELEGATED CO-COMMISSIONING,MOSBOROUGH HEALTH CENTRE,17966958,"45,903.40 "
Department of Health,NHS Sheffield CCG,31/07/2017,C&M-PMS Cost of Drugs -Prescribing,LOCAL ENHANCED SERVICES,MOSBOROUGH HEALTH CENTRE,17966958,161.43 
Department of Health,NHS Sheffield CCG,31/07/2017,C&M-PMS DES Extended Hours Access,PRC DELEGATED CO-COMMISSIONING,MOSBOROUGH HEALTH CENTRE,17966958,"3,118.38 "
Department of Health,NHS Sheffield CCG,31/07/2017,C&M-PMS Funding Differential Review,PRC DELEGATED CO-COMMISSIONING,MOSBOROUGH HEALTH CENTRE,17966958,"1,253.00 "
Department of Health,NHS Sheffield CCG,31/07/2017,C&M-PMS Out of Hours Opt Outs,PRC DELEGATED CO-COMMISSIONING,MOSBOROUGH HEALTH CENTRE,17966958,60.51 
Department of Health,NHS Sheffield CCG,31/07/2017,C&M-PMS PCO Other,PRC DELEGATED CO-COMMISSIONING,MOSBOROUGH HEALTH CENTRE,17966958,905.20 
Department of Health,NHS Sheffield CCG,31/07/2017,C&M-PMS Prem Notional Rent,PRC DELEGATED CO-COMMISSIONING,MOSBOROUGH HEALTH CENTRE,17966958,"4,091.67 "
Department of Health,NHS Sheffield CCG,31/07/2017,C&M-PMS Prem Water Rates,PRC DELEGATED CO-COMMISSIONING,MOSBOROUGH HEALTH CENTRE,17966958,74.03 
Department of Health,NHS Sheffield CCG,31/07/2017,C&M-PMS Prof fees Prescribing,PRC DELEGATED CO-COMMISSIONING,MOSBOROUGH HEALTH CENTRE,17966958,43.51 
Department of Health,NHS Sheffield CCG,31/07/2017,C&M-PMS QOF Aspiration,PRC DELEGATED CO-COMMISSIONING,MOSBOROUGH HEALTH CENTRE,17966958,"6,017.44 "
Department of Health,NHS Sheffield CCG,31/07/2017,C&M-PMS Contract Value,PRC DELEGATED CO-COMMISSIONING,NETHERGREEN SURGERY,17966959,"(6,913.77)"
Department of Health,NHS Sheffield CCG,31/07/2017,C&M-PMS DES Minor Surgery,PRC DELEGATED CO-COMMISSIONING,NETHERGREEN SURGERY,17966959,"(1,090.00)"
Department of Health,NHS Sheffield CCG,31/07/2017,C&M-PMS Delivery,PRC DELEGATED CO-COMMISSIONING,NETHERGREEN SURGERY,17966959,"(4,526.00)"
Department of Health,NHS Sheffield CCG,31/07/2017,C&M-PMS GP Statutory Levy,PRC DELEGATED CO-COMMISSIONING,NETHERGREEN SURGERY,17966959,(280.74)
Department of Health,NHS Sheffield CCG,31/07/2017,C&M-PMS Out of Hours Opt Outs,PRC DELEGATED CO-COMMISSIONING,NETHERGREEN SURGERY,17966959,"(2,829.10)"
Department of Health,NHS Sheffield CCG,31/07/2017,C&M-PMS Prem Rates,PRC DELEGATED CO-COMMISSIONING,NETHERGREEN SURGERY,17966959,"(2,399.50)"
Department of Health,NHS Sheffield CCG,31/07/2017,C&M-PMS Voluntary Levy,PRC DELEGATED CO-COMMISSIONING,NETHERGREEN SURGERY,17966959,(46.79)
Department of Health,NHS Sheffield CCG,31/07/2017,C&M-PMS Contract Value,PRC DELEGATED CO-COMMISSIONING,NETHERGREEN SURGERY,17966960,"60,075.27 "
Department of Health,NHS Sheffield CCG,31/07/2017,C&M-PMS DES Extended Hours Access,PRC DELEGATED CO-COMMISSIONING,NETHERGREEN SURGERY,17966960,"4,435.08 "
Department of Health,NHS Sheffield CCG,31/07/2017,C&M-PMS Funding Differential Review,PRC DELEGATED CO-COMMISSIONING,NETHERGREEN SURGERY,17966960,"1,876.58 "
Department of Health,NHS Sheffield CCG,31/07/2017,C&M-PMS Out of Hours Opt Outs,PRC DELEGATED CO-COMMISSIONING,NETHERGREEN SURGERY,17966960,115.71 
Department of Health,NHS Sheffield CCG,31/07/2017,C&M-PMS Prem Cost Rent,PRC DELEGATED CO-COMMISSIONING,NETHERGREEN SURGERY,17966960,"5,057.33 "
Department of Health,NHS Sheffield CCG,31/07/2017,C&M-PMS Prem Rates,PRC DELEGATED CO-COMMISSIONING,NETHERGREEN SURGERY,17966960,"2,400.00 "
Department of Health,NHS Sheffield CCG,31/07/2017,C&M-PMS Prem Water Rates,PRC DELEGATED CO-COMMISSIONING,NETHERGREEN SURGERY,17966960,148.70 
Department of Health,NHS Sheffield CCG,31/07/2017,C&M-PMS QOF Aspiration,PRC DELEGATED CO-COMMISSIONING,NETHERGREEN SURGERY,17966960,"6,339.79 "
Department of Health,NHS Sheffield CCG,31/07/2017,C&M-PMS Contract Value,PRC DELEGATED CO-COMMISSIONING,OWLTHORPE MEDICAL CENTRE,17966962,"37,827.10 "
Department of Health,NHS Sheffield CCG,31/07/2017,C&M-PMS DES Extended Hours Access,PRC DELEGATED CO-COMMISSIONING,OWLTHORPE MEDICAL CENTRE,17966962,"2,203.53 "
Department of Health,NHS Sheffield CCG,31/07/2017,C&M-PMS Funding Differential Review,PRC DELEGATED CO-COMMISSIONING,OWLTHORPE MEDICAL CENTRE,17966962,"1,499.67 "
Department of Health,NHS Sheffield CCG,31/07/2017,C&M-PMS Out of Hours Opt Outs,PRC DELEGATED CO-COMMISSIONING,OWLTHORPE MEDICAL CENTRE,17966962,86.90 
Department of Health,NHS Sheffield CCG,31/07/2017,C&M-PMS PCO Other,PRC DELEGATED CO-COMMISSIONING,OWLTHORPE MEDICAL CENTRE,17966962,769.00 
Department of Health,NHS Sheffield CCG,31/07/2017,C&M-PMS Prem Actual Rent,PRC DELEGATED CO-COMMISSIONING,OWLTHORPE MEDICAL CENTRE,17966962,"7,436.33 "
Department of Health,NHS Sheffield CCG,31/07/2017,C&M-PMS QOF Aspiration,PRC DELEGATED CO-COMMISSIONING,OWLTHORPE MEDICAL CENTRE,17966962,"4,031.40 "
Department of Health,NHS Sheffield CCG,31/07/2017,C&M-PMS Contract Value,PRC DELEGATED CO-COMMISSIONING,PARK HEALTH CENTRE,17966965,"41,436.95 "
Department of Health,NHS Sheffield CCG,31/07/2017,C&M-PMS DES Extended Hours Access,PRC DELEGATED CO-COMMISSIONING,PARK HEALTH CENTRE,17966965,"2,487.10 "
Department of Health,NHS Sheffield CCG,31/07/2017,C&M-PMS Funding Differential Review,PRC DELEGATED CO-COMMISSIONING,PARK HEALTH CENTRE,17966965,"3,290.17 "
Department of Health,NHS Sheffield CCG,31/07/2017,C&M-PMS Out of Hours Opt Outs,PRC DELEGATED CO-COMMISSIONING,PARK HEALTH CENTRE,17966965,79.57 
Department of Health,NHS Sheffield CCG,31/07/2017,C&M-PMS PCO Other,PRC DELEGATED CO-COMMISSIONING,PARK HEALTH CENTRE,17966965,905.20 
Department of Health,NHS Sheffield CCG,31/07/2017,C&M-PMS Prem Notional Rent,PRC DELEGATED CO-COMMISSIONING,PARK HEALTH CENTRE,17966965,"6,000.00 "
Department of Health,NHS Sheffield CCG,31/07/2017,C&M-PMS Prem Water Rates,PRC DELEGATED CO-COMMISSIONING,PARK HEALTH CENTRE,17966965,163.93 
Department of Health,NHS Sheffield CCG,31/07/2017,C&M-PMS QOF Aspiration,PRC DELEGATED CO-COMMISSIONING,PARK HEALTH CENTRE,17966965,"4,293.17 "
Department of Health,NHS Sheffield CCG,31/07/2017,C&M-PMS Contract Value,PRC DELEGATED CO-COMMISSIONING,PITSMOOR SURGERY,17966966,"(8,336.33)"
Department of Health,NHS Sheffield CCG,31/07/2017,C&M-PMS DES Minor Surgery,PRC DELEGATED CO-COMMISSIONING,PITSMOOR SURGERY,17966966,"(2,425.00)"
Department of Health,NHS Sheffield CCG,31/07/2017,C&M-PMS GP Statutory Levy,PRC DELEGATED CO-COMMISSIONING,PITSMOOR SURGERY,17966966,(280.83)
Department of Health,NHS Sheffield CCG,31/07/2017,C&M-PMS Out of Hours Opt Outs,PRC DELEGATED CO-COMMISSIONING,PITSMOOR SURGERY,17966966,"(3,618.72)"
Department of Health,NHS Sheffield CCG,31/07/2017,C&M-PMS Voluntary Levy,PRC DELEGATED CO-COMMISSIONING,PITSMOOR SURGERY,17966966,(46.81)
Department of Health,NHS Sheffield CCG,31/07/2017,C&M-PMS Contract Value,PRC DELEGATED CO-COMMISSIONING,PORTER BROOK MEDICAL CENTRE,17966967,"(17,343.44)"
Department of Health,NHS Sheffield CCG,31/07/2017,C&M-PMS DES Minor Surgery,PRC DELEGATED CO-COMMISSIONING,PORTER BROOK MEDICAL CENTRE,17966967,"(6,550.00)"
Department of Health,NHS Sheffield CCG,31/07/2017,C&M-PMS Delivery,PRC DELEGATED CO-COMMISSIONING,PORTER BROOK MEDICAL CENTRE,17966967,"(1,183.60)"
Department of Health,NHS Sheffield CCG,31/07/2017,C&M-PMS GP Statutory Levy,PRC DELEGATED CO-COMMISSIONING,PORTER BROOK MEDICAL CENTRE,17966967,(831.48)
Department of Health,NHS Sheffield CCG,31/07/2017,C&M-PMS Out of Hours Opt Outs,PRC DELEGATED CO-COMMISSIONING,PORTER BROOK MEDICAL CENTRE,17966967,"(7,690.33)"
Department of Health,NHS Sheffield CCG,31/07/2017,C&M-PMS Prem Rates,PRC DELEGATED CO-COMMISSIONING,PORTER BROOK MEDICAL CENTRE,17966967,"(1,956.00)"
Department of Health,NHS Sheffield CCG,31/07/2017,C&M-PMS Voluntary Levy,PRC DELEGATED CO-COMMISSIONING,PORTER BROOK MEDICAL CENTRE,17966967,(138.58)
Department of Health,NHS Sheffield CCG,31/07/2017,C&M-PMS Contract Value,PRC DELEGATED CO-COMMISSIONING,RICHMOND MEDICAL CENTRE,17966968,"(7,938.11)"
Department of Health,NHS Sheffield CCG,31/07/2017,C&M-PMS DES Minor Surgery,PRC DELEGATED CO-COMMISSIONING,RICHMOND MEDICAL CENTRE,17966968,"(1,775.00)"
Department of Health,NHS Sheffield CCG,31/07/2017,C&M-PMS Delivery,PRC DELEGATED CO-COMMISSIONING,RICHMOND MEDICAL CENTRE,17966968,(905.20)
Department of Health,NHS Sheffield CCG,31/07/2017,C&M-PMS GP Statutory Levy,PRC DELEGATED CO-COMMISSIONING,RICHMOND MEDICAL CENTRE,17966968,(257.52)
Department of Health,NHS Sheffield CCG,31/07/2017,C&M-PMS Out of Hours Opt Outs,PRC DELEGATED CO-COMMISSIONING,RICHMOND MEDICAL CENTRE,17966968,"(2,892.58)"
Department of Health,NHS Sheffield CCG,31/07/2017,C&M-PMS Prem Rates,PRC DELEGATED CO-COMMISSIONING,RICHMOND MEDICAL CENTRE,17966968,"(2,273.50)"
Department of Health,NHS Sheffield CCG,31/07/2017,C&M-PMS Voluntary Levy,PRC DELEGATED CO-COMMISSIONING,RICHMOND MEDICAL CENTRE,17966968,(42.92)
Department of Health,NHS Sheffield CCG,31/07/2017,C&M-PMS Contract Value,PRC DELEGATED CO-COMMISSIONING,RICHMOND MEDICAL CENTRE,17966969,"61,056.97 "
Department of Health,NHS Sheffield CCG,31/07/2017,C&M-PMS DES Extended Hours Access,PRC DELEGATED CO-COMMISSIONING,RICHMOND MEDICAL CENTRE,17966969,"4,047.00 "
Department of Health,NHS Sheffield CCG,31/07/2017,C&M-PMS Funding Differential Review,PRC DELEGATED CO-COMMISSIONING,RICHMOND MEDICAL CENTRE,17966969,"1,802.33 "
Department of Health,NHS Sheffield CCG,31/07/2017,C&M-PMS Out of Hours Opt Outs,PRC DELEGATED CO-COMMISSIONING,RICHMOND MEDICAL CENTRE,17966969,163.08 
Department of Health,NHS Sheffield CCG,31/07/2017,C&M-PMS PCO Other,PRC DELEGATED CO-COMMISSIONING,RICHMOND MEDICAL CENTRE,17966969,905.20 
Department of Health,NHS Sheffield CCG,31/07/2017,C&M-PMS Prem Notional Rent,PRC DELEGATED CO-COMMISSIONING,RICHMOND MEDICAL CENTRE,17966969,"11,057.21 "
Department of Health,NHS Sheffield CCG,31/07/2017,C&M-PMS Prem Rates,PRC DELEGATED CO-COMMISSIONING,RICHMOND MEDICAL CENTRE,17966969,"2,278.00 "
Department of Health,NHS Sheffield CCG,31/07/2017,C&M-PMS QOF Aspiration,PRC DELEGATED CO-COMMISSIONING,RICHMOND MEDICAL CENTRE,17966969,"7,754.77 "
Department of Health,NHS Sheffield CCG,31/07/2017,C&M-PMS Contract Value,PRC DELEGATED CO-COMMISSIONING,SELBORNE ROAD MEDICAL CENTRE,17966971,"19,016.70 "
Department of Health,NHS Sheffield CCG,31/07/2017,C&M-PMS Funding Differential Review,PRC DELEGATED CO-COMMISSIONING,SELBORNE ROAD MEDICAL CENTRE,17966971,631.58 
Department of Health,NHS Sheffield CCG,31/07/2017,C&M-PMS Out of Hours Opt Outs,PRC DELEGATED CO-COMMISSIONING,SELBORNE ROAD MEDICAL CENTRE,17966971,23.99 
Department of Health,NHS Sheffield CCG,31/07/2017,C&M-PMS PCO Other,PRC DELEGATED CO-COMMISSIONING,SELBORNE ROAD MEDICAL CENTRE,17966971,769.00 
Department of Health,NHS Sheffield CCG,31/07/2017,C&M-PMS Prem Notional Rent,PRC DELEGATED CO-COMMISSIONING,SELBORNE ROAD MEDICAL CENTRE,17966971,"1,677.08 "
Department of Health,NHS Sheffield CCG,31/07/2017,C&M-PMS Prem Rates,PRC DELEGATED CO-COMMISSIONING,SELBORNE ROAD MEDICAL CENTRE,17966971,"1,030.00 "
Department of Health,NHS Sheffield CCG,31/07/2017,C&M-PMS QOF Aspiration,PRC DELEGATED CO-COMMISSIONING,SELBORNE ROAD MEDICAL CENTRE,17966971,"2,351.67 "
Department of Health,NHS Sheffield CCG,31/07/2017,C&M-PMS Contract Value,PRC DELEGATED CO-COMMISSIONING,RUSTLINGS ROAD MEDICAL CENTRE,17966973,"27,028.22 "
Department of Health,NHS Sheffield CCG,31/07/2017,C&M-PMS DES UNPLANNED ADMISSIONS,PRC DELEGATED CO-COMMISSIONING,RUSTLINGS ROAD MEDICAL CENTRE,17966973,"3,512.74 "
Department of Health,NHS Sheffield CCG,31/07/2017,C&M-PMS Funding Differential Review,PRC DELEGATED CO-COMMISSIONING,RUSTLINGS ROAD MEDICAL CENTRE,17966973,"1,235.92 "
Department of Health,NHS Sheffield CCG,31/07/2017,C&M-PMS Out of Hours Opt Outs,PRC DELEGATED CO-COMMISSIONING,RUSTLINGS ROAD MEDICAL CENTRE,17966973,39.11 
Department of Health,NHS Sheffield CCG,31/07/2017,C&M-PMS PCO Other,PRC DELEGATED CO-COMMISSIONING,RUSTLINGS ROAD MEDICAL CENTRE,17966973,769.00 
Department of Health,NHS Sheffield CCG,31/07/2017,C&M-PMS Prem Notional Rent,PRC DELEGATED CO-COMMISSIONING,RUSTLINGS ROAD MEDICAL CENTRE,17966973,"1,167.92 "
Department of Health,NHS Sheffield CCG,31/07/2017,C&M-PMS Prem Water Rates,PRC DELEGATED CO-COMMISSIONING,RUSTLINGS ROAD MEDICAL CENTRE,17966973,88.30 
Department of Health,NHS Sheffield CCG,31/07/2017,C&M-PMS QOF Aspiration,PRC DELEGATED CO-COMMISSIONING,RUSTLINGS ROAD MEDICAL CENTRE,17966973,"2,481.56 "
Department of Health,NHS Sheffield CCG,31/07/2017,C&M-PMS Contract Value,PRC DELEGATED CO-COMMISSIONING,SLOAN MEDICAL CENTRE,17966974,"(9,377.96)"
Department of Health,NHS Sheffield CCG,31/07/2017,C&M-PMS DES Minor Surgery,PRC DELEGATED CO-COMMISSIONING,SLOAN MEDICAL CENTRE,17966974,"(2,120.00)"
Department of Health,NHS Sheffield CCG,31/07/2017,C&M-PMS Delivery,PRC DELEGATED CO-COMMISSIONING,SLOAN MEDICAL CENTRE,17966974,"(1,047.40)"
Department of Health,NHS Sheffield CCG,31/07/2017,C&M-PMS GP Statutory Levy,PRC DELEGATED CO-COMMISSIONING,SLOAN MEDICAL CENTRE,17966974,(383.55)
Department of Health,NHS Sheffield CCG,31/07/2017,C&M-PMS Out of Hours Opt Outs,PRC DELEGATED CO-COMMISSIONING,SLOAN MEDICAL CENTRE,17966974,"(4,280.94)"
Department of Health,NHS Sheffield CCG,31/07/2017,C&M-PMS Prem Rates,PRC DELEGATED CO-COMMISSIONING,SLOAN MEDICAL CENTRE,17966974,"(2,990.00)"
Department of Health,NHS Sheffield CCG,31/07/2017,C&M-PMS Voluntary Levy,PRC DELEGATED CO-COMMISSIONING,SLOAN MEDICAL CENTRE,17966974,(63.93)
Department of Health,NHS Sheffield CCG,31/07/2017,C&M-PMS Contract Value,PRC DELEGATED CO-COMMISSIONING,SLOAN MEDICAL CENTRE,17966975,"90,407.09 "
Department of Health,NHS Sheffield CCG,31/07/2017,C&M-PMS DES Extended Hours Access,PRC DELEGATED CO-COMMISSIONING,SLOAN MEDICAL CENTRE,17966975,"6,070.50 "
Department of Health,NHS Sheffield CCG,31/07/2017,C&M-PMS Funding Differential Review,PRC DELEGATED CO-COMMISSIONING,SLOAN MEDICAL CENTRE,17966975,165.33 
Department of Health,NHS Sheffield CCG,31/07/2017,C&M-PMS Out of Hours Opt Outs,PRC DELEGATED CO-COMMISSIONING,SLOAN MEDICAL CENTRE,17966975,124.19 
Department of Health,NHS Sheffield CCG,31/07/2017,C&M-PMS PCO Other,PRC DELEGATED CO-COMMISSIONING,SLOAN MEDICAL CENTRE,17966975,"1,047.40 "
Department of Health,NHS Sheffield CCG,31/07/2017,C&M-PMS Prem Actual Rent,PRC DELEGATED CO-COMMISSIONING,SLOAN MEDICAL CENTRE,17966975,"15,535.83 "
Department of Health,NHS Sheffield CCG,31/07/2017,C&M-PMS Prem Notional Rent,PRC DELEGATED CO-COMMISSIONING,SLOAN MEDICAL CENTRE,17966975,"2,433.36 "
Department of Health,NHS Sheffield CCG,31/07/2017,C&M-PMS Prem Rates,PRC DELEGATED CO-COMMISSIONING,SLOAN MEDICAL CENTRE,17966975,"5,980.00 "
Department of Health,NHS Sheffield CCG,31/07/2017,C&M-PMS Prem Water Rates,PRC DELEGATED CO-COMMISSIONING,SLOAN MEDICAL CENTRE,17966975,69.32 
Department of Health,NHS Sheffield CCG,31/07/2017,C&M-PMS QOF Aspiration,PRC DELEGATED CO-COMMISSIONING,SLOAN MEDICAL CENTRE,17966975,"10,663.96 "
Department of Health,NHS Sheffield CCG,31/07/2017,C&M-PMS Contract Value,PRC DELEGATED CO-COMMISSIONING,SOTHALL MEDICAL CENTRE,17966977,"69,447.89 "
Department of Health,NHS Sheffield CCG,31/07/2017,C&M-PMS DES Extended Hours Access,PRC DELEGATED CO-COMMISSIONING,SOTHALL MEDICAL CENTRE,17966977,"4,864.48 "
Department of Health,NHS Sheffield CCG,31/07/2017,C&M-PMS Funding Differential Review,PRC DELEGATED CO-COMMISSIONING,SOTHALL MEDICAL CENTRE,17966977,"3,463.83 "
Department of Health,NHS Sheffield CCG,31/07/2017,C&M-PMS Out of Hours Opt Outs,PRC DELEGATED CO-COMMISSIONING,SOTHALL MEDICAL CENTRE,17966977,94.11 
Department of Health,NHS Sheffield CCG,31/07/2017,C&M-PMS PCO Other,PRC DELEGATED CO-COMMISSIONING,SOTHALL MEDICAL CENTRE,17966977,"1,047.40 "
Department of Health,NHS Sheffield CCG,31/07/2017,C&M-PMS Prem Healthcentre Rent,PRC DELEGATED CO-COMMISSIONING,SOTHALL MEDICAL CENTRE,17966977,"18,818.43 "
Department of Health,NHS Sheffield CCG,31/07/2017,C&M-PMS Prem Notional Rent,PRC DELEGATED CO-COMMISSIONING,SOTHALL MEDICAL CENTRE,17966977,"5,116.67 "
Department of Health,NHS Sheffield CCG,31/07/2017,C&M-PMS Prem Rates,PRC DELEGATED CO-COMMISSIONING,SOTHALL MEDICAL CENTRE,17966977,"3,997.02 "
Department of Health,NHS Sheffield CCG,31/07/2017,C&M-PMS Prem Water Rates,PRC DELEGATED CO-COMMISSIONING,SOTHALL MEDICAL CENTRE,17966977,118.84 
Department of Health,NHS Sheffield CCG,31/07/2017,C&M-PMS QOF Aspiration,PRC DELEGATED CO-COMMISSIONING,SOTHALL MEDICAL CENTRE,17966977,"8,821.42 "
Department of Health,NHS Sheffield CCG,31/07/2017,C&M-PMS Contract Value,PRC DELEGATED CO-COMMISSIONING,SOUTHEY GREEN MEDICAL CENTRE,17966979,"24,861.05 "
Department of Health,NHS Sheffield CCG,31/07/2017,C&M-PMS DES Extended Hours Access,PRC DELEGATED CO-COMMISSIONING,SOUTHEY GREEN MEDICAL CENTRE,17966979,"1,402.20 "
Department of Health,NHS Sheffield CCG,31/07/2017,C&M-PMS Funding Differential Review,PRC DELEGATED CO-COMMISSIONING,SOUTHEY GREEN MEDICAL CENTRE,17966979,127.58 
Department of Health,NHS Sheffield CCG,31/07/2017,C&M-PMS Out of Hours Opt Outs,PRC DELEGATED CO-COMMISSIONING,SOUTHEY GREEN MEDICAL CENTRE,17966979,42.05 
Department of Health,NHS Sheffield CCG,31/07/2017,C&M-PMS Prem Notional Rent,PRC DELEGATED CO-COMMISSIONING,SOUTHEY GREEN MEDICAL CENTRE,17966979,"3,362.50 "
Department of Health,NHS Sheffield CCG,31/07/2017,C&M-PMS QOF Aspiration,PRC DELEGATED CO-COMMISSIONING,SOUTHEY GREEN MEDICAL CENTRE,17966979,"2,875.40 "
Department of Health,NHS Sheffield CCG,31/07/2017,C&M-PMS Contract Value,PRC DELEGATED CO-COMMISSIONING,UNIVERSITY HEALTH SERVICE,17966982,"(19,175.36)"
Department of Health,NHS Sheffield CCG,31/07/2017,C&M-PMS DES Minor Surgery,PRC DELEGATED CO-COMMISSIONING,UNIVERSITY HEALTH SERVICE,17966982,"(3,740.00)"
Department of Health,NHS Sheffield CCG,31/07/2017,C&M-PMS GP Statutory Levy,PRC DELEGATED CO-COMMISSIONING,UNIVERSITY HEALTH SERVICE,17966982,(866.97)
Department of Health,NHS Sheffield CCG,31/07/2017,C&M-PMS Out of Hours Opt Outs,PRC DELEGATED CO-COMMISSIONING,UNIVERSITY HEALTH SERVICE,17966982,"(7,483.26)"
Department of Health,NHS Sheffield CCG,31/07/2017,C&M-PMS Voluntary Levy,PRC DELEGATED CO-COMMISSIONING,UNIVERSITY HEALTH SERVICE,17966982,(144.50)
Department of Health,NHS Sheffield CCG,31/07/2017,C&M-PMS Contract Value,PRC DELEGATED CO-COMMISSIONING,UPWELL STREET SURGERY,17966983,"(3,782.96)"
Department of Health,NHS Sheffield CCG,31/07/2017,C&M-PMS DES Minor Surgery,PRC DELEGATED CO-COMMISSIONING,UPWELL STREET SURGERY,17966983,"(1,285.00)"
Department of Health,NHS Sheffield CCG,31/07/2017,C&M-PMS Delivery,PRC DELEGATED CO-COMMISSIONING,UPWELL STREET SURGERY,17966983,(769.00)
Department of Health,NHS Sheffield CCG,31/07/2017,C&M-PMS GP Statutory Levy,PRC DELEGATED CO-COMMISSIONING,UPWELL STREET SURGERY,17966983,(142.02)
Department of Health,NHS Sheffield CCG,31/07/2017,C&M-PMS Out of Hours Opt Outs,PRC DELEGATED CO-COMMISSIONING,UPWELL STREET SURGERY,17966983,"(1,760.28)"
Department of Health,NHS Sheffield CCG,31/07/2017,C&M-PMS Prem Actual Rent,PRC DELEGATED CO-COMMISSIONING,UPWELL STREET SURGERY,17966983,"(16,275.00)"
Department of Health,NHS Sheffield CCG,31/07/2017,C&M-PMS Prem Rates,PRC DELEGATED CO-COMMISSIONING,UPWELL STREET SURGERY,17966983,(984.00)
Department of Health,NHS Sheffield CCG,31/07/2017,C&M-PMS Voluntary Levy,PRC DELEGATED CO-COMMISSIONING,UPWELL STREET SURGERY,17966983,(23.67)
Department of Health,NHS Sheffield CCG,31/07/2017,C&M-PMS Contract Value,PRC DELEGATED CO-COMMISSIONING,UPWELL STREET SURGERY,17966984,"37,405.81 "
Department of Health,NHS Sheffield CCG,31/07/2017,C&M-PMS DES Extended Hours Access,PRC DELEGATED CO-COMMISSIONING,UPWELL STREET SURGERY,17966984,"2,300.90 "
Department of Health,NHS Sheffield CCG,31/07/2017,C&M-PMS Funding Differential Review,PRC DELEGATED CO-COMMISSIONING,UPWELL STREET SURGERY,17966984,"2,004.50 "
Department of Health,NHS Sheffield CCG,31/07/2017,C&M-PMS Out of Hours Opt Outs,PRC DELEGATED CO-COMMISSIONING,UPWELL STREET SURGERY,17966984,45.79 
Department of Health,NHS Sheffield CCG,31/07/2017,C&M-PMS PCO Other,PRC DELEGATED CO-COMMISSIONING,UPWELL STREET SURGERY,17966984,769.00 
Department of Health,NHS Sheffield CCG,31/07/2017,C&M-PMS Prem Actual Rent,PRC DELEGATED CO-COMMISSIONING,UPWELL STREET SURGERY,17966984,"8,137.50 "
Department of Health,NHS Sheffield CCG,31/07/2017,C&M-PMS Prem Notional Rent,PRC DELEGATED CO-COMMISSIONING,UPWELL STREET SURGERY,17966984,"16,275.00 "
Department of Health,NHS Sheffield CCG,31/07/2017,C&M-PMS Prem Rates,PRC DELEGATED CO-COMMISSIONING,UPWELL STREET SURGERY,17966984,"1,968.00 "
Department of Health,NHS Sheffield CCG,31/07/2017,C&M-PMS QOF Aspiration,PRC DELEGATED CO-COMMISSIONING,UPWELL STREET SURGERY,17966984,"4,877.64 "
Department of Health,NHS Sheffield CCG,31/07/2017,C&M-PMS Contract Value,PRC DELEGATED CO-COMMISSIONING,VALLEY MEDICAL CENTRE,17966986,"74,774.73 "
Department of Health,NHS Sheffield CCG,31/07/2017,C&M-PMS Funding Differential Review,PRC DELEGATED CO-COMMISSIONING,VALLEY MEDICAL CENTRE,17966986,271.17 
Department of Health,NHS Sheffield CCG,31/07/2017,C&M-PMS Out of Hours Opt Outs,PRC DELEGATED CO-COMMISSIONING,VALLEY MEDICAL CENTRE,17966986,169.60 
Department of Health,NHS Sheffield CCG,31/07/2017,C&M-PMS Prem Actual Rent,PRC DELEGATED CO-COMMISSIONING,VALLEY MEDICAL CENTRE,17966986,"24,915.60 "
Department of Health,NHS Sheffield CCG,31/07/2017,C&M-PMS Prem Rates,PRC DELEGATED CO-COMMISSIONING,VALLEY MEDICAL CENTRE,17966986,"2,166.00 "
Department of Health,NHS Sheffield CCG,31/07/2017,C&M-PMS QOF Aspiration,PRC DELEGATED CO-COMMISSIONING,VALLEY MEDICAL CENTRE,17966986,"9,125.55 "
Department of Health,NHS Sheffield CCG,31/07/2017,C&M-PMS Contract Value,PRC DELEGATED CO-COMMISSIONING,WOODHOUSE HEALTH CENTRE,17966987,"(9,828.19)"
Department of Health,NHS Sheffield CCG,31/07/2017,C&M-PMS DES Minor Surgery,PRC DELEGATED CO-COMMISSIONING,WOODHOUSE HEALTH CENTRE,17966987,"(2,920.00)"
Department of Health,NHS Sheffield CCG,31/07/2017,C&M-PMS GP Statutory Levy,PRC DELEGATED CO-COMMISSIONING,WOODHOUSE HEALTH CENTRE,17966987,(365.22)
Department of Health,NHS Sheffield CCG,31/07/2017,C&M-PMS Out of Hours Opt Outs,PRC DELEGATED CO-COMMISSIONING,WOODHOUSE HEALTH CENTRE,17966987,"(4,522.48)"
Department of Health,NHS Sheffield CCG,31/07/2017,C&M-PMS Prem Water Rates,PRC DELEGATED CO-COMMISSIONING,WOODHOUSE HEALTH CENTRE,17966987,(399.86)
Department of Health,NHS Sheffield CCG,31/07/2017,C&M-PMS Voluntary Levy,PRC DELEGATED CO-COMMISSIONING,WOODHOUSE HEALTH CENTRE,17966987,(60.87)
Department of Health,NHS Sheffield CCG,31/07/2017,C&M-PMS Contract Value,PRC DELEGATED CO-COMMISSIONING,WOODHOUSE HEALTH CENTRE,17966988,"95,880.54 "
Department of Health,NHS Sheffield CCG,31/07/2017,C&M-PMS DES Extended Hours Access,PRC DELEGATED CO-COMMISSIONING,WOODHOUSE HEALTH CENTRE,17966988,"5,784.08 "
Department of Health,NHS Sheffield CCG,31/07/2017,C&M-PMS Funding Differential Review,PRC DELEGATED CO-COMMISSIONING,WOODHOUSE HEALTH CENTRE,17966988,"2,776.33 "
Department of Health,NHS Sheffield CCG,31/07/2017,C&M-PMS Out of Hours Opt Outs,PRC DELEGATED CO-COMMISSIONING,WOODHOUSE HEALTH CENTRE,17966988,125.50 
Department of Health,NHS Sheffield CCG,31/07/2017,C&M-PMS Prem Notional Rent,PRC DELEGATED CO-COMMISSIONING,WOODHOUSE HEALTH CENTRE,17966988,"6,338.58 "
Department of Health,NHS Sheffield CCG,31/07/2017,C&M-PMS QOF Aspiration,PRC DELEGATED CO-COMMISSIONING,WOODHOUSE HEALTH CENTRE,17966988,"14,743.27 "
Department of Health,NHS Sheffield CCG,31/07/2017,C&M-PMS Contract Value,PRC DELEGATED CO-COMMISSIONING,WOODSEATS MEDICAL CENTRE,17966989,"(7,440.62)"
Department of Health,NHS Sheffield CCG,31/07/2017,C&M-PMS DES Minor Surgery,PRC DELEGATED CO-COMMISSIONING,WOODSEATS MEDICAL CENTRE,17966989,"(3,475.00)"
Department of Health,NHS Sheffield CCG,31/07/2017,C&M-PMS Delivery,PRC DELEGATED CO-COMMISSIONING,WOODSEATS MEDICAL CENTRE,17966989,(905.20)
Department of Health,NHS Sheffield CCG,31/07/2017,C&M-PMS GP Statutory Levy,PRC DELEGATED CO-COMMISSIONING,WOODSEATS MEDICAL CENTRE,17966989,(275.61)
Department of Health,NHS Sheffield CCG,31/07/2017,C&M-PMS Out of Hours Opt Outs,PRC DELEGATED CO-COMMISSIONING,WOODSEATS MEDICAL CENTRE,17966989,"(3,076.20)"
Department of Health,NHS Sheffield CCG,31/07/2017,C&M-PMS Prem Rates,PRC DELEGATED CO-COMMISSIONING,WOODSEATS MEDICAL CENTRE,17966989,"(1,233.00)"
Department of Health,NHS Sheffield CCG,31/07/2017,C&M-PMS Voluntary Levy,PRC DELEGATED CO-COMMISSIONING,WOODSEATS MEDICAL CENTRE,17966989,(45.94)
Department of Health,NHS Sheffield CCG,31/07/2017,C&M-PMS Contract Value,PRC DELEGATED CO-COMMISSIONING,WOODSEATS MEDICAL CENTRE,17966990,"64,985.98 "
Department of Health,NHS Sheffield CCG,31/07/2017,C&M-PMS DES Extended Hours Access,PRC DELEGATED CO-COMMISSIONING,WOODSEATS MEDICAL CENTRE,17966990,"4,329.15 "
Department of Health,NHS Sheffield CCG,31/07/2017,C&M-PMS Funding Differential Review,PRC DELEGATED CO-COMMISSIONING,WOODSEATS MEDICAL CENTRE,17966990,397.08 
Department of Health,NHS Sheffield CCG,31/07/2017,C&M-PMS Out of Hours Opt Outs,PRC DELEGATED CO-COMMISSIONING,WOODSEATS MEDICAL CENTRE,17966990,121.86 
Department of Health,NHS Sheffield CCG,31/07/2017,C&M-PMS PCO Other,PRC DELEGATED CO-COMMISSIONING,WOODSEATS MEDICAL CENTRE,17966990,905.20 
Department of Health,NHS Sheffield CCG,31/07/2017,C&M-PMS Prem Notional Rent,PRC DELEGATED CO-COMMISSIONING,WOODSEATS MEDICAL CENTRE,17966990,"3,578.92 "
Department of Health,NHS Sheffield CCG,31/07/2017,C&M-PMS Prem Rates,PRC DELEGATED CO-COMMISSIONING,WOODSEATS MEDICAL CENTRE,17966990,"2,466.00 "
Department of Health,NHS Sheffield CCG,31/07/2017,C&M-PMS QOF Aspiration,PRC DELEGATED CO-COMMISSIONING,WOODSEATS MEDICAL CENTRE,17966990,"8,124.33 "
Department of Health,NHS Sheffield CCG,31/07/2017,C&M-PMS Contract Value,PRC DELEGATED CO-COMMISSIONING,WINCOBANK MEDICAL CENTRE,17966992,"58,705.24 "
Department of Health,NHS Sheffield CCG,31/07/2017,C&M-PMS DES Extended Hours Access,PRC DELEGATED CO-COMMISSIONING,WINCOBANK MEDICAL CENTRE,17966992,"3,565.83 "
Department of Health,NHS Sheffield CCG,31/07/2017,C&M-PMS DES UNPLANNED ADMISSIONS,PRC DELEGATED CO-COMMISSIONING,WINCOBANK MEDICAL CENTRE,17966992,"5,614.84 "
Department of Health,NHS Sheffield CCG,31/07/2017,C&M-PMS Funding Differential Review,PRC DELEGATED CO-COMMISSIONING,WINCOBANK MEDICAL CENTRE,17966992,9.92 
Department of Health,NHS Sheffield CCG,31/07/2017,C&M-PMS Out of Hours Opt Outs,PRC DELEGATED CO-COMMISSIONING,WINCOBANK MEDICAL CENTRE,17966992,114.68 
Department of Health,NHS Sheffield CCG,31/07/2017,C&M-PMS Prem Healthcentre Rent,PRC DELEGATED CO-COMMISSIONING,WINCOBANK MEDICAL CENTRE,17966992,"40,840.62 "
Department of Health,NHS Sheffield CCG,31/07/2017,C&M-PMS QOF Aspiration,PRC DELEGATED CO-COMMISSIONING,WINCOBANK MEDICAL CENTRE,17966992,"6,934.01 "
Department of Health,NHS Sheffield CCG,31/07/2017,C&M-PMS Contract Value,PRC DELEGATED CO-COMMISSIONING,FOXHILL MEDICAL CENTRE SHEFFIELD,17966993,"(5,633.36)"
Department of Health,NHS Sheffield CCG,31/07/2017,C&M-PMS DES Minor Surgery,PRC DELEGATED CO-COMMISSIONING,FOXHILL MEDICAL CENTRE SHEFFIELD,17966993,(400.00)
Department of Health,NHS Sheffield CCG,31/07/2017,C&M-PMS GP Statutory Levy,PRC DELEGATED CO-COMMISSIONING,FOXHILL MEDICAL CENTRE SHEFFIELD,17966993,(186.18)
Department of Health,NHS Sheffield CCG,31/07/2017,C&M-PMS Out of Hours Opt Outs,PRC DELEGATED CO-COMMISSIONING,FOXHILL MEDICAL CENTRE SHEFFIELD,17966993,"(2,368.82)"
Department of Health,NHS Sheffield CCG,31/07/2017,C&M-PMS Voluntary Levy,PRC DELEGATED CO-COMMISSIONING,FOXHILL MEDICAL CENTRE SHEFFIELD,17966993,(31.03)
Department of Health,NHS Sheffield CCG,31/07/2017,C&M-APMS Contract Value,PRC DELEGATED CO-COMMISSIONING,SHEFFIELD HEALTH & SOCIAL CARE NHS FOUNDATION TRUST,17975276,"119,551.04 "
Department of Health,NHS Sheffield CCG,31/07/2017,C&M-APMS DES Extended Hours Access,PRC DELEGATED CO-COMMISSIONING,SHEFFIELD HEALTH & SOCIAL CARE NHS FOUNDATION TRUST,17975276,"7,777.65 "
Department of Health,NHS Sheffield CCG,31/07/2017,C&M-APMS OOH Opt Outs,PRC DELEGATED CO-COMMISSIONING,SHEFFIELD HEALTH & SOCIAL CARE NHS FOUNDATION TRUST,17975276,25.66 
Department of Health,NHS Sheffield CCG,31/07/2017,C&M-APMS Prem Actual Rent,PRC DELEGATED CO-COMMISSIONING,SHEFFIELD HEALTH & SOCIAL CARE NHS FOUNDATION TRUST,17975276,"10,339.36 "
Department of Health,NHS Sheffield CCG,31/07/2017,C&M-APMS Prem Healthcentre Rent,PRC DELEGATED CO-COMMISSIONING,SHEFFIELD HEALTH & SOCIAL CARE NHS FOUNDATION TRUST,17975276,"116,546.26 "
Department of Health,NHS Sheffield CCG,31/07/2017,C&M-APMS Prem Notional Rent,PRC DELEGATED CO-COMMISSIONING,SHEFFIELD HEALTH & SOCIAL CARE NHS FOUNDATION TRUST,17975276,"5,608.34 "
Department of Health,NHS Sheffield CCG,31/07/2017,C&M-PMS Out of Hours Opt Outs,PRC DELEGATED CO-COMMISSIONING,SHEFFIELD HEALTH & SOCIAL CARE NHS FOUNDATION TRUST,17975276,"2,561.89 "
Department of Health,NHS Sheffield CCG,31/07/2017,C&M-PMS QOF Aspiration,PRC DELEGATED CO-COMMISSIONING,SHEFFIELD HEALTH & SOCIAL CARE NHS FOUNDATION TRUST,17975276,"12,657.74 "
Department of Health,NHS Sheffield CCG,31/07/2017,C&M-APMS Contract Value,PRC DELEGATED CO-COMMISSIONING,SHEFFIELD HEALTH & SOCIAL CARE NHS FOUNDATION TRUST,17975278,"26,651.85 "
Department of Health,NHS Sheffield CCG,31/07/2017,C&M-APMS DES Extended Hours Access,PRC DELEGATED CO-COMMISSIONING,SHEFFIELD HEALTH & SOCIAL CARE NHS FOUNDATION TRUST,17975278,"2,150.80 "
Department of Health,NHS Sheffield CCG,31/07/2017,C&M-APMS OOH Opt Outs,PRC DELEGATED CO-COMMISSIONING,SHEFFIELD HEALTH & SOCIAL CARE NHS FOUNDATION TRUST,17975278,1.10 
Department of Health,NHS Sheffield CCG,31/07/2017,C&M-PMS Out of Hours Opt Outs,PRC DELEGATED CO-COMMISSIONING,SHEFFIELD HEALTH & SOCIAL CARE NHS FOUNDATION TRUST,17975278,29.40 
Department of Health,NHS Sheffield CCG,31/07/2017,C&M-PMS QOF Aspiration,PRC DELEGATED CO-COMMISSIONING,SHEFFIELD HEALTH & SOCIAL CARE NHS FOUNDATION TRUST,17975278,"1,256.00 "
Department of Health,NHS Sheffield CCG,31/07/2017,C&M-GMS LES Basket of Procedures,LOCAL ENHANCED SERVICES,PRIMARY CARE SHEFFIELD LTD,17978198,"25,785.00 "
Department of Health,NHS Sheffield CCG,31/07/2017,Hcare Srv Rec Fdtn Trust-CQUIN,ACUTE CHILDRENS SERVICES,SHEFFIELD CHILDRENS NHS FOUNDATION TRUST,17978273,"27,118.00 "
Department of Health,NHS Sheffield CCG,31/07/2017,Hcare Srv Rec Fdtn Trust-CQUIN,COMMUNITY SERVICES,SHEFFIELD CHILDRENS NHS FOUNDATION TRUST,17978273,"3,728.00 "
Department of Health,NHS Sheffield CCG,31/07/2017,Hcare Srv Rec Fdtn Trust-Contract Baseline,ACUTE CHILDRENS SERVICES,SHEFFIELD CHILDRENS NHS FOUNDATION TRUST,17978273,"21,923.44 "
Department of Health,NHS Sheffield CCG,31/07/2017,Hcare Srv Rec Fdtn Trust-Contract Baseline,HIGH COST DRUGS,SHEFFIELD CHILDRENS NHS FOUNDATION TRUST,17978273,"12,220.00 "
Department of Health,NHS Sheffield CCG,31/07/2017,Hcare Srv Rec Fdtn Trust-Contract Baseline,MENTAL HEALTH CONTRACTS,SHEFFIELD CHILDRENS NHS FOUNDATION TRUST,17978273,"(3,099.00)"
Department of Health,NHS Sheffield CCG,31/07/2017,Hcare Srv Rec Fdtn Trust-Contract Baseline,PLANNED CARE,SHEFFIELD CHILDRENS NHS FOUNDATION TRUST,17978273,"(166,841.00)"
Department of Health,NHS Sheffield CCG,31/07/2017,Hcare Srv Rec Fdtn Trust-Contract Baseline,URGENT CARE,SHEFFIELD CHILDRENS NHS FOUNDATION TRUST,17978273,"(83,600.00)"
Department of Health,NHS Sheffield CCG,31/07/2017,Hcare Srv Rec Fdtn Trust-CQUIN,ACUTE CHILDRENS SERVICES,SHEFFIELD CHILDRENS NHS FOUNDATION TRUST,17978280,"33,488.00 "
Department of Health,NHS Sheffield CCG,31/07/2017,Hcare Srv Rec Fdtn Trust-CQUIN,COMMUNITY SERVICES,SHEFFIELD CHILDRENS NHS FOUNDATION TRUST,17978280,"3,728.00 "
Department of Health,NHS Sheffield CCG,31/07/2017,Hcare Srv Rec Fdtn Trust-Contract Baseline,ACUTE CHILDRENS SERVICES,SHEFFIELD CHILDRENS NHS FOUNDATION TRUST,17978280,"19,956.99 "
Department of Health,NHS Sheffield CCG,31/07/2017,Hcare Srv Rec Fdtn Trust-Contract Baseline,HIGH COST DRUGS,SHEFFIELD CHILDRENS NHS FOUNDATION TRUST,17978280,"8,298.00 "
Department of Health,NHS Sheffield CCG,31/07/2017,Hcare Srv Rec Fdtn Trust-Contract Baseline,MENTAL HEALTH CONTRACTS,SHEFFIELD CHILDRENS NHS FOUNDATION TRUST,17978280,(921.00)
Department of Health,NHS Sheffield CCG,31/07/2017,Hcare Srv Rec Fdtn Trust-Contract Baseline,PLANNED CARE,SHEFFIELD CHILDRENS NHS FOUNDATION TRUST,17978280,"2,767.00 "
Department of Health,NHS Sheffield CCG,31/07/2017,Hcare Srv Rec Fdtn Trust-Contract Baseline,URGENT CARE,SHEFFIELD CHILDRENS NHS FOUNDATION TRUST,17978280,"1,365.00 "
Department of Health,NHS Sheffield CCG,31/07/2017,Clinical&Medical-Independent Sector,ACUTE COMMISSIONING,CLAREMONT HOSPITAL,17978304,"78,290.00 "
Department of Health,NHS Sheffield CCG,31/07/2017,C&M-GMS LES Translation Fees,LOCAL ENHANCED SERVICES,LANGUAGELINE SOLUTIONS,17978310,"75,346.58 "
Department of Health,NHS Sheffield CCG,31/07/2017,C&M-OES Childrens Schemes,LOCAL ENHANCED SERVICES,PRIMARY EYECARE (SHEFFIELD) LTD,17978324,"2,700.00 "
Department of Health,NHS Sheffield CCG,31/07/2017,C&M-OES Glaucoma,LOCAL ENHANCED SERVICES,PRIMARY EYECARE (SHEFFIELD) LTD,17978324,630.00 
Department of Health,NHS Sheffield CCG,31/07/2017,C&M-OES Intra-ocular Ocular Hypertn,LOCAL ENHANCED SERVICES,PRIMARY EYECARE (SHEFFIELD) LTD,17978324,780.00 
Department of Health,NHS Sheffield CCG,31/07/2017,C&M-OES PEARS,LOCAL ENHANCED SERVICES,PRIMARY EYECARE (SHEFFIELD) LTD,17978324,"22,738.00 "
Department of Health,NHS Sheffield CCG,31/07/2017,Clinical&Medical-Commercial Sector,PATIENT TRANSPORT,NORTHERN TAXIS LTD,17978337,"161,646.60 "
Department of Health,NHS Sheffield CCG,31/07/2017,C&M-APMS Contract Value,PRC DELEGATED CO-COMMISSIONING,SHEFFIELD HEALTH & SOCIAL CARE NHS FOUNDATION TRUST,17978340,68.66 
Department of Health,NHS Sheffield CCG,31/07/2017,C&M-APMS OOH Opt Outs,PRC DELEGATED CO-COMMISSIONING,SHEFFIELD HEALTH & SOCIAL CARE NHS FOUNDATION TRUST,17978340,"1,302.34 "
Department of Health,NHS Sheffield CCG,31/07/2017,C&M-PMS QOF Achievement,PRC DELEGATED CO-COMMISSIONING,SHEFFIELD HEALTH & SOCIAL CARE NHS FOUNDATION TRUST,17978340,"20,484.10 "
Department of Health,NHS Sheffield CCG,31/07/2017,C&M-APMS Contract Value,PRC DELEGATED CO-COMMISSIONING,SHEFFIELD HEALTH & SOCIAL CARE NHS FOUNDATION TRUST,17978356,"(29,083.30)"
Department of Health,NHS Sheffield CCG,31/07/2017,C&M-APMS DES Minor Surgery,PRC DELEGATED CO-COMMISSIONING,SHEFFIELD HEALTH & SOCIAL CARE NHS FOUNDATION TRUST,17978356,(240.00)
Department of Health,NHS Sheffield CCG,31/07/2017,C&M-APMS OOH Opt Outs,PRC DELEGATED CO-COMMISSIONING,SHEFFIELD HEALTH & SOCIAL CARE NHS FOUNDATION TRUST,17978356,(3.41)
Department of Health,NHS Sheffield CCG,31/07/2017,C&M-PMS QOF Aspiration,PRC DELEGATED CO-COMMISSIONING,SHEFFIELD HEALTH & SOCIAL CARE NHS FOUNDATION TRUST,17978356,"(1,256.00)"
Department of Health,NHS Sheffield CCG,31/07/2017,Hcare Srv Rec NHS Trust-Non Contract,NCAS/OATS,NORTHUMBERLAND TYNE AND WEAR NHS FOUNDATION TRUST,17978365,"72,330.00 "
Department of Health,NHS Sheffield CCG,31/07/2017,Hcare Srv Rec Fdtn Trust-Contract Baseline,MENTAL HEALTH CONTRACTS,SHEFFIELD HEALTH & SOCIAL CARE NHS FOUNDATION TRUST,17978372,"6,013,427.33 "
Department of Health,NHS Sheffield CCG,31/07/2017,Clinical&Medical-Independent Sector,ACUTE COMMISSIONING,ONEHEALTH GROUP,17978390,"90,000.00 "
Department of Health,NHS Sheffield CCG,31/07/2017,C&M-PMS Contract Value,PRC DELEGATED CO-COMMISSIONING,BURNCROSS SURGERY,17993023,"118,268.82 "
Department of Health,NHS Sheffield CCG,31/07/2017,C&M-PMS DES Extended Hours Access,PRC DELEGATED CO-COMMISSIONING,BURNCROSS SURGERY,17993023,"7,419.98 "
Department of Health,NHS Sheffield CCG,31/07/2017,C&M-PMS Funding Differential Review,PRC DELEGATED CO-COMMISSIONING,BURNCROSS SURGERY,17993023,"1,648.42 "
Department of Health,NHS Sheffield CCG,31/07/2017,C&M-PMS PCO Other,PRC DELEGATED CO-COMMISSIONING,BURNCROSS SURGERY,17993023,"5,918.00 "
Department of Health,NHS Sheffield CCG,31/07/2017,C&M-PMS Prem Notional Rent,PRC DELEGATED CO-COMMISSIONING,BURNCROSS SURGERY,17993023,"14,058.33 "
Department of Health,NHS Sheffield CCG,31/07/2017,C&M-PMS QOF Aspiration,PRC DELEGATED CO-COMMISSIONING,BURNCROSS SURGERY,17993023,"14,930.79 "
Department of Health,NHS Sheffield CCG,31/07/2017,C&M-PMS Contract Value,PRC DELEGATED CO-COMMISSIONING,BURNGREAVE SURGERY,17993024,"53,575.14 "
Department of Health,NHS Sheffield CCG,31/07/2017,C&M-PMS DES Extended Hours Access,PRC DELEGATED CO-COMMISSIONING,BURNGREAVE SURGERY,17993024,"3,134.05 "
Department of Health,NHS Sheffield CCG,31/07/2017,C&M-PMS Funding Differential Review,PRC DELEGATED CO-COMMISSIONING,BURNGREAVE SURGERY,17993024,"1,353.08 "
Department of Health,NHS Sheffield CCG,31/07/2017,C&M-PMS Out of Hours Opt Outs,PRC DELEGATED CO-COMMISSIONING,BURNGREAVE SURGERY,17993024,96.96 
Department of Health,NHS Sheffield CCG,31/07/2017,C&M-PMS PCO Other,PRC DELEGATED CO-COMMISSIONING,BURNGREAVE SURGERY,17993024,"4,526.00 "
Department of Health,NHS Sheffield CCG,31/07/2017,C&M-PMS Prem Notional Rent,PRC DELEGATED CO-COMMISSIONING,BURNGREAVE SURGERY,17993024,"5,916.66 "
Department of Health,NHS Sheffield CCG,31/07/2017,C&M-PMS Prem Rates,PRC DELEGATED CO-COMMISSIONING,BURNGREAVE SURGERY,17993024,"5,558.87 "
Department of Health,NHS Sheffield CCG,31/07/2017,C&M-PMS Prem Water Rates,PRC DELEGATED CO-COMMISSIONING,BURNGREAVE SURGERY,17993024,359.57 
Department of Health,NHS Sheffield CCG,31/07/2017,C&M-PMS QOF Aspiration,PRC DELEGATED CO-COMMISSIONING,BURNGREAVE SURGERY,17993024,"5,148.30 "
Department of Health,NHS Sheffield CCG,31/07/2017,C&M-PMS Contract Value,PRC DELEGATED CO-COMMISSIONING,DEEPCAR MEDICAL CENTRE,17993025,"38,614.91 "
Department of Health,NHS Sheffield CCG,31/07/2017,C&M-PMS DES Extended Hours Access,PRC DELEGATED CO-COMMISSIONING,DEEPCAR MEDICAL CENTRE,17993025,"2,444.35 "
Department of Health,NHS Sheffield CCG,31/07/2017,C&M-PMS Dispensing Quality Sch,PRC DELEGATED CO-COMMISSIONING,DEEPCAR MEDICAL CENTRE,17993025,"1,127.46 "
Department of Health,NHS Sheffield CCG,31/07/2017,C&M-PMS Funding Differential Review,PRC DELEGATED CO-COMMISSIONING,DEEPCAR MEDICAL CENTRE,17993025,306.08 
Department of Health,NHS Sheffield CCG,31/07/2017,C&M-PMS Out of Hours Opt Outs,PRC DELEGATED CO-COMMISSIONING,DEEPCAR MEDICAL CENTRE,17993025,53.75 
Department of Health,NHS Sheffield CCG,31/07/2017,C&M-PMS PCO Other,PRC DELEGATED CO-COMMISSIONING,DEEPCAR MEDICAL CENTRE,17993025,"4,526.00 "
Department of Health,NHS Sheffield CCG,31/07/2017,C&M-PMS Prem Healthcentre Rent,PRC DELEGATED CO-COMMISSIONING,DEEPCAR MEDICAL CENTRE,17993025,"26,323.25 "
Department of Health,NHS Sheffield CCG,31/07/2017,C&M-PMS QOF Aspiration,PRC DELEGATED CO-COMMISSIONING,DEEPCAR MEDICAL CENTRE,17993025,"4,452.12 "
Department of Health,NHS Sheffield CCG,31/07/2017,C&M-PMS Contract Value,PRC DELEGATED CO-COMMISSIONING,DOVERCOURT SURGERY,17993026,"67,476.52 "
Department of Health,NHS Sheffield CCG,31/07/2017,C&M-PMS DES Extended Hours Access,PRC DELEGATED CO-COMMISSIONING,DOVERCOURT SURGERY,17993026,"3,876.95 "
Department of Health,NHS Sheffield CCG,31/07/2017,C&M-PMS DES Learn Dsblty Hlth Chk,PRC DELEGATED CO-COMMISSIONING,DOVERCOURT SURGERY,17993026,928.00 
Department of Health,NHS Sheffield CCG,31/07/2017,C&M-PMS Funding Differential Review,PRC DELEGATED CO-COMMISSIONING,DOVERCOURT SURGERY,17993026,"3,616.08 "
Department of Health,NHS Sheffield CCG,31/07/2017,C&M-PMS Out of Hours Opt Outs,PRC DELEGATED CO-COMMISSIONING,DOVERCOURT SURGERY,17993026,129.64 
Department of Health,NHS Sheffield CCG,31/07/2017,C&M-PMS PCO Other,PRC DELEGATED CO-COMMISSIONING,DOVERCOURT SURGERY,17993026,"3,845.00 "
Department of Health,NHS Sheffield CCG,31/07/2017,C&M-PMS Prem Actual Rent,PRC DELEGATED CO-COMMISSIONING,DOVERCOURT SURGERY,17993026,"12,400.00 "
Department of Health,NHS Sheffield CCG,31/07/2017,C&M-PMS Prem Notional Rent,PRC DELEGATED CO-COMMISSIONING,DOVERCOURT SURGERY,17993026,"1,708.34 "
Department of Health,NHS Sheffield CCG,31/07/2017,C&M-PMS Prem Water Rates,PRC DELEGATED CO-COMMISSIONING,DOVERCOURT SURGERY,17993026,532.02 
Department of Health,NHS Sheffield CCG,31/07/2017,C&M-PMS QOF Aspiration,PRC DELEGATED CO-COMMISSIONING,DOVERCOURT SURGERY,17993026,"7,505.03 "
Department of Health,NHS Sheffield CCG,31/07/2017,C&M-PMS Contract Value,PRC DELEGATED CO-COMMISSIONING,DR MILNER & PARTNERS,17993027,"(8,387.51)"
Department of Health,NHS Sheffield CCG,31/07/2017,C&M-PMS DES Minor Surgery,PRC DELEGATED CO-COMMISSIONING,DR MILNER & PARTNERS,17993027,"(1,160.00)"
Department of Health,NHS Sheffield CCG,31/07/2017,C&M-PMS Delivery,PRC DELEGATED CO-COMMISSIONING,DR MILNER & PARTNERS,17993027,"(1,047.40)"
Department of Health,NHS Sheffield CCG,31/07/2017,C&M-PMS GP Statutory Levy,PRC DELEGATED CO-COMMISSIONING,DR MILNER & PARTNERS,17993027,(315.72)
Department of Health,NHS Sheffield CCG,31/07/2017,C&M-PMS Out of Hours Opt Outs,PRC DELEGATED CO-COMMISSIONING,DR MILNER & PARTNERS,17993027,"(3,373.31)"
Department of Health,NHS Sheffield CCG,31/07/2017,C&M-PMS Prem Rates,PRC DELEGATED CO-COMMISSIONING,DR MILNER & PARTNERS,17993027,"(1,921.00)"
Department of Health,NHS Sheffield CCG,31/07/2017,C&M-PMS Voluntary Levy,PRC DELEGATED CO-COMMISSIONING,DR MILNER & PARTNERS,17993027,(52.62)
Department of Health,NHS Sheffield CCG,31/07/2017,C&M-PMS Contract Value,PRC DELEGATED CO-COMMISSIONING,DUNNINC ROAD SURGERY,17993028,"23,478.24 "
Department of Health,NHS Sheffield CCG,31/07/2017,C&M-PMS DES Extended Hours Access,PRC DELEGATED CO-COMMISSIONING,DUNNINC ROAD SURGERY,17993028,"1,437.35 "
Department of Health,NHS Sheffield CCG,31/07/2017,C&M-PMS Funding Differential Review,PRC DELEGATED CO-COMMISSIONING,DUNNINC ROAD SURGERY,17993028,"1,218.67 "
Department of Health,NHS Sheffield CCG,31/07/2017,C&M-PMS Prem Actual Rent,PRC DELEGATED CO-COMMISSIONING,DUNNINC ROAD SURGERY,17993028,"1,799.57 "
Department of Health,NHS Sheffield CCG,31/07/2017,C&M-PMS Prem Notional Rent,PRC DELEGATED CO-COMMISSIONING,DUNNINC ROAD SURGERY,17993028,"1,604.17 "
Department of Health,NHS Sheffield CCG,31/07/2017,C&M-PMS QOF Aspiration,PRC DELEGATED CO-COMMISSIONING,DUNNINC ROAD SURGERY,17993028,"2,548.20 "
Department of Health,NHS Sheffield CCG,31/07/2017,C&M-PMS Contract Value,PRC DELEGATED CO-COMMISSIONING,FIRTH PARK SURGERY,17993029,"70,389.53 "
Department of Health,NHS Sheffield CCG,31/07/2017,C&M-PMS DES Extended Hours Access,PRC DELEGATED CO-COMMISSIONING,FIRTH PARK SURGERY,17993029,"4,628.40 "
Department of Health,NHS Sheffield CCG,31/07/2017,C&M-PMS DES UNPLANNED ADMISSIONS,PRC DELEGATED CO-COMMISSIONING,FIRTH PARK SURGERY,17993029,"7,439.74 "
Department of Health,NHS Sheffield CCG,31/07/2017,C&M-PMS Out of Hours Opt Outs,PRC DELEGATED CO-COMMISSIONING,FIRTH PARK SURGERY,17993029,167.35 
Department of Health,NHS Sheffield CCG,31/07/2017,C&M-PMS PCO Locum Adop/Pat/Mat,PRC DELEGATED CO-COMMISSIONING,FIRTH PARK SURGERY,17993029,"14,973.58 "
Department of Health,NHS Sheffield CCG,31/07/2017,C&M-PMS PCO Other,PRC DELEGATED CO-COMMISSIONING,FIRTH PARK SURGERY,17993029,"4,526.00 "
Department of Health,NHS Sheffield CCG,31/07/2017,C&M-PMS Prem Notional Rent,PRC DELEGATED CO-COMMISSIONING,FIRTH PARK SURGERY,17993029,"4,500.00 "
Department of Health,NHS Sheffield CCG,31/07/2017,C&M-PMS Prem Rates,PRC DELEGATED CO-COMMISSIONING,FIRTH PARK SURGERY,17993029,"2,582.00 "
Department of Health,NHS Sheffield CCG,31/07/2017,C&M-PMS Prem Water Rates,PRC DELEGATED CO-COMMISSIONING,FIRTH PARK SURGERY,17993029,201.88 
Department of Health,NHS Sheffield CCG,31/07/2017,C&M-PMS QOF Aspiration,PRC DELEGATED CO-COMMISSIONING,FIRTH PARK SURGERY,17993029,"8,194.20 "
Department of Health,NHS Sheffield CCG,31/07/2017,C&M-PMS Contract Value,PRC DELEGATED CO-COMMISSIONING,HACKENTHORPE MEDICAL CENTRE,17993030,"45,859.76 "
Department of Health,NHS Sheffield CCG,31/07/2017,C&M-PMS DES Extended Hours Access,PRC DELEGATED CO-COMMISSIONING,HACKENTHORPE MEDICAL CENTRE,17993030,"3,154.95 "
Department of Health,NHS Sheffield CCG,31/07/2017,C&M-PMS Funding Differential Review,PRC DELEGATED CO-COMMISSIONING,HACKENTHORPE MEDICAL CENTRE,17993030,"2,105.58 "
Department of Health,NHS Sheffield CCG,31/07/2017,C&M-PMS Out of Hours Opt Outs,PRC DELEGATED CO-COMMISSIONING,HACKENTHORPE MEDICAL CENTRE,17993030,59.48 
Department of Health,NHS Sheffield CCG,31/07/2017,C&M-PMS PCO Locum Adop/Pat/Mat,PRC DELEGATED CO-COMMISSIONING,HACKENTHORPE MEDICAL CENTRE,17993030,"17,875.61 "
Department of Health,NHS Sheffield CCG,31/07/2017,C&M-PMS Prem Notional Rent,PRC DELEGATED CO-COMMISSIONING,HACKENTHORPE MEDICAL CENTRE,17993030,"4,981.25 "
Department of Health,NHS Sheffield CCG,31/07/2017,C&M-PMS QOF Aspiration,PRC DELEGATED CO-COMMISSIONING,HACKENTHORPE MEDICAL CENTRE,17993030,"6,731.39 "
Department of Health,NHS Sheffield CCG,31/07/2017,C&M-PMS Contract Value,PRC DELEGATED CO-COMMISSIONING,JAUNTY SPRINGS HEALTH CENTRE,17993031,"28,768.66 "
Department of Health,NHS Sheffield CCG,31/07/2017,C&M-PMS DES Extended Hours Access,PRC DELEGATED CO-COMMISSIONING,JAUNTY SPRINGS HEALTH CENTRE,17993031,"1,719.98 "
Department of Health,NHS Sheffield CCG,31/07/2017,C&M-PMS Funding Differential Review,PRC DELEGATED CO-COMMISSIONING,JAUNTY SPRINGS HEALTH CENTRE,17993031,448.00 
Department of Health,NHS Sheffield CCG,31/07/2017,C&M-PMS Out of Hours Opt Outs,PRC DELEGATED CO-COMMISSIONING,JAUNTY SPRINGS HEALTH CENTRE,17993031,35.15 
Department of Health,NHS Sheffield CCG,31/07/2017,C&M-PMS PCO Other,PRC DELEGATED CO-COMMISSIONING,JAUNTY SPRINGS HEALTH CENTRE,17993031,"1,538.00 "
Department of Health,NHS Sheffield CCG,31/07/2017,C&M-PMS Prem Notional Rent,PRC DELEGATED CO-COMMISSIONING,JAUNTY SPRINGS HEALTH CENTRE,17993031,"3,208.33 "
Department of Health,NHS Sheffield CCG,31/07/2017,C&M-PMS Prem Rates,PRC DELEGATED CO-COMMISSIONING,JAUNTY SPRINGS HEALTH CENTRE,17993031,"1,140.00 "
Department of Health,NHS Sheffield CCG,31/07/2017,C&M-PMS Prem Water Rates,PRC DELEGATED CO-COMMISSIONING,JAUNTY SPRINGS HEALTH CENTRE,17993031,51.50 
Department of Health,NHS Sheffield CCG,31/07/2017,C&M-PMS QOF Aspiration,PRC DELEGATED CO-COMMISSIONING,JAUNTY SPRINGS HEALTH CENTRE,17993031,"4,393.31 "
Department of Health,NHS Sheffield CCG,31/07/2017,C&M-PMS Contract Value,PRC DELEGATED CO-COMMISSIONING,MEADOWHEAD GROUP PRACTICE,17993032,"75,473.75 "
Department of Health,NHS Sheffield CCG,31/07/2017,C&M-PMS DES Extended Hours Access,PRC DELEGATED CO-COMMISSIONING,MEADOWHEAD GROUP PRACTICE,17993032,"4,688.25 "
Department of Health,NHS Sheffield CCG,31/07/2017,C&M-PMS Out of Hours Opt Outs,PRC DELEGATED CO-COMMISSIONING,MEADOWHEAD GROUP PRACTICE,17993032,162.88 
Department of Health,NHS Sheffield CCG,31/07/2017,C&M-PMS PCO Locum Adop/Pat/Mat,PRC DELEGATED CO-COMMISSIONING,MEADOWHEAD GROUP PRACTICE,17993032,"5,569.78 "
Department of Health,NHS Sheffield CCG,31/07/2017,C&M-PMS PCO Other,PRC DELEGATED CO-COMMISSIONING,MEADOWHEAD GROUP PRACTICE,17993032,"4,526.00 "
Department of Health,NHS Sheffield CCG,31/07/2017,C&M-PMS Prem Cost Rent,PRC DELEGATED CO-COMMISSIONING,MEADOWHEAD GROUP PRACTICE,17993032,"3,647.42 "
Department of Health,NHS Sheffield CCG,31/07/2017,C&M-PMS Prem Healthcentre Rent,PRC DELEGATED CO-COMMISSIONING,MEADOWHEAD GROUP PRACTICE,17993032,"7,482.68 "
Department of Health,NHS Sheffield CCG,31/07/2017,C&M-PMS Prem Notional Rent,PRC DELEGATED CO-COMMISSIONING,MEADOWHEAD GROUP PRACTICE,17993032,"3,358.33 "
Department of Health,NHS Sheffield CCG,31/07/2017,C&M-PMS Prem Rates,PRC DELEGATED CO-COMMISSIONING,MEADOWHEAD GROUP PRACTICE,17993032,"3,418.00 "
Department of Health,NHS Sheffield CCG,31/07/2017,C&M-PMS Prem Water Rates,PRC DELEGATED CO-COMMISSIONING,MEADOWHEAD GROUP PRACTICE,17993032,156.60 
Department of Health,NHS Sheffield CCG,31/07/2017,C&M-PMS QOF Aspiration,PRC DELEGATED CO-COMMISSIONING,MEADOWHEAD GROUP PRACTICE,17993032,"10,533.01 "
Department of Health,NHS Sheffield CCG,31/07/2017,C&M-PMS Contract Value,PRC DELEGATED CO-COMMISSIONING,PAGE HALL MEDICAL CENTRE,17993033,"53,350.13 "
Department of Health,NHS Sheffield CCG,31/07/2017,C&M-PMS DES Extended Hours Access,PRC DELEGATED CO-COMMISSIONING,PAGE HALL MEDICAL CENTRE,17993033,"3,538.75 "
Department of Health,NHS Sheffield CCG,31/07/2017,C&M-PMS Funding Differential Review,PRC DELEGATED CO-COMMISSIONING,PAGE HALL MEDICAL CENTRE,17993033,"5,391.08 "
Department of Health,NHS Sheffield CCG,31/07/2017,C&M-PMS Out of Hours Opt Outs,PRC DELEGATED CO-COMMISSIONING,PAGE HALL MEDICAL CENTRE,17993033,63.22 
Department of Health,NHS Sheffield CCG,31/07/2017,C&M-PMS Prem Actual Rent,PRC DELEGATED CO-COMMISSIONING,PAGE HALL MEDICAL CENTRE,17993033,"3,511.00 "
Department of Health,NHS Sheffield CCG,31/07/2017,C&M-PMS Prem Notional Rent,PRC DELEGATED CO-COMMISSIONING,PAGE HALL MEDICAL CENTRE,17993033,"4,683.33 "
Department of Health,NHS Sheffield CCG,31/07/2017,C&M-PMS Prem Rates,PRC DELEGATED CO-COMMISSIONING,PAGE HALL MEDICAL CENTRE,17993033,"1,750.00 "
Department of Health,NHS Sheffield CCG,31/07/2017,C&M-PMS Prem Water Rates,PRC DELEGATED CO-COMMISSIONING,PAGE HALL MEDICAL CENTRE,17993033,113.34 
Department of Health,NHS Sheffield CCG,31/07/2017,C&M-PMS QOF Aspiration,PRC DELEGATED CO-COMMISSIONING,PAGE HALL MEDICAL CENTRE,17993033,"5,102.24 "
Department of Health,NHS Sheffield CCG,31/07/2017,C&M-PMS Contract Value,PRC DELEGATED CO-COMMISSIONING,PITSMOOR SURGERY,17993034,"76,031.60 "
Department of Health,NHS Sheffield CCG,31/07/2017,C&M-PMS DES Extended Hours Access,PRC DELEGATED CO-COMMISSIONING,PITSMOOR SURGERY,17993034,"4,493.98 "
Department of Health,NHS Sheffield CCG,31/07/2017,C&M-PMS DES Learn Dsblty Hlth Chk,PRC DELEGATED CO-COMMISSIONING,PITSMOOR SURGERY,17993034,"3,828.00 "
Department of Health,NHS Sheffield CCG,31/07/2017,C&M-PMS Out of Hours Opt Outs,PRC DELEGATED CO-COMMISSIONING,PITSMOOR SURGERY,17993034,121.90 
Department of Health,NHS Sheffield CCG,31/07/2017,C&M-PMS PCO Locum Adop/Pat/Mat,PRC DELEGATED CO-COMMISSIONING,PITSMOOR SURGERY,17993034,"19,605.28 "
Department of Health,NHS Sheffield CCG,31/07/2017,C&M-PMS PCO Other,PRC DELEGATED CO-COMMISSIONING,PITSMOOR SURGERY,17993034,"4,526.00 "
Department of Health,NHS Sheffield CCG,31/07/2017,C&M-PMS Prem Notional Rent,PRC DELEGATED CO-COMMISSIONING,PITSMOOR SURGERY,17993034,"9,650.00 "
Department of Health,NHS Sheffield CCG,31/07/2017,C&M-PMS QOF Aspiration,PRC DELEGATED CO-COMMISSIONING,PITSMOOR SURGERY,17993034,"7,463.31 "
Department of Health,NHS Sheffield CCG,31/07/2017,C&M-PMS Contract Value,PRC DELEGATED CO-COMMISSIONING,PORTER BROOK MEDICAL CENTRE,17993035,"162,869.14 "
Department of Health,NHS Sheffield CCG,31/07/2017,C&M-PMS DES Extended Hours Access,PRC DELEGATED CO-COMMISSIONING,PORTER BROOK MEDICAL CENTRE,17993035,"13,620.63 "
Department of Health,NHS Sheffield CCG,31/07/2017,C&M-PMS Funding Differential Review,PRC DELEGATED CO-COMMISSIONING,PORTER BROOK MEDICAL CENTRE,17993035,"5,112.08 "
Department of Health,NHS Sheffield CCG,31/07/2017,C&M-PMS Out of Hours Opt Outs,PRC DELEGATED CO-COMMISSIONING,PORTER BROOK MEDICAL CENTRE,17993035,258.89 
Department of Health,NHS Sheffield CCG,31/07/2017,C&M-PMS PCO Other,PRC DELEGATED CO-COMMISSIONING,PORTER BROOK MEDICAL CENTRE,17993035,"1,183.60 "
Department of Health,NHS Sheffield CCG,31/07/2017,C&M-PMS Prem Actual Rent,PRC DELEGATED CO-COMMISSIONING,PORTER BROOK MEDICAL CENTRE,17993035,"1,333.33 "
Department of Health,NHS Sheffield CCG,31/07/2017,C&M-PMS Prem Notional Rent,PRC DELEGATED CO-COMMISSIONING,PORTER BROOK MEDICAL CENTRE,17993035,"9,559.58 "
Department of Health,NHS Sheffield CCG,31/07/2017,C&M-PMS Prem Rates,PRC DELEGATED CO-COMMISSIONING,PORTER BROOK MEDICAL CENTRE,17993035,"3,912.00 "
Department of Health,NHS Sheffield CCG,31/07/2017,C&M-PMS QOF Aspiration,PRC DELEGATED CO-COMMISSIONING,PORTER BROOK MEDICAL CENTRE,17993035,"8,899.04 "
Department of Health,NHS Sheffield CCG,31/07/2017,C&M-PMS Contract Value,PRC DELEGATED CO-COMMISSIONING,UNIVERSITY HEALTH SERVICE,17993036,"152,548.90 "
Department of Health,NHS Sheffield CCG,31/07/2017,C&M-PMS Out of Hours Opt Outs,PRC DELEGATED CO-COMMISSIONING,UNIVERSITY HEALTH SERVICE,17993036,417.58 
Department of Health,NHS Sheffield CCG,31/07/2017,C&M-PMS PCO Other,PRC DELEGATED CO-COMMISSIONING,UNIVERSITY HEALTH SERVICE,17993036,"5,918.00 "
Department of Health,NHS Sheffield CCG,31/07/2017,C&M-PMS Prem Notional Rent,PRC DELEGATED CO-COMMISSIONING,UNIVERSITY HEALTH SERVICE,17993036,"15,833.33 "
Department of Health,NHS Sheffield CCG,31/07/2017,C&M-PMS QOF Aspiration,PRC DELEGATED CO-COMMISSIONING,UNIVERSITY HEALTH SERVICE,17993036,"3,640.26 "
Department of Health,NHS Sheffield CCG,31/07/2017,C&M-PMS Contract Value,PRC DELEGATED CO-COMMISSIONING,FOXHILL MEDICAL CENTRE SHEFFIELD,17993037,"50,266.22 "
Department of Health,NHS Sheffield CCG,31/07/2017,C&M-PMS DES Extended Hours Access,PRC DELEGATED CO-COMMISSIONING,FOXHILL MEDICAL CENTRE SHEFFIELD,17993037,"2,956.88 "
Department of Health,NHS Sheffield CCG,31/07/2017,C&M-PMS Funding Differential Review,PRC DELEGATED CO-COMMISSIONING,FOXHILL MEDICAL CENTRE SHEFFIELD,17993037,"1,451.25 "
Department of Health,NHS Sheffield CCG,31/07/2017,C&M-PMS Out of Hours Opt Outs,PRC DELEGATED CO-COMMISSIONING,FOXHILL MEDICAL CENTRE SHEFFIELD,17993037,88.88 
Department of Health,NHS Sheffield CCG,31/07/2017,C&M-PMS PCO Other,PRC DELEGATED CO-COMMISSIONING,FOXHILL MEDICAL CENTRE SHEFFIELD,17993037,"1,810.40 "
Department of Health,NHS Sheffield CCG,31/07/2017,C&M-PMS Prem Healthcentre Rent,PRC DELEGATED CO-COMMISSIONING,FOXHILL MEDICAL CENTRE SHEFFIELD,17993037,"45,910.32 "
Department of Health,NHS Sheffield CCG,31/07/2017,C&M-PMS QOF Aspiration,PRC DELEGATED CO-COMMISSIONING,FOXHILL MEDICAL CENTRE SHEFFIELD,17993037,"5,736.75 "
Department of Health,NHS Sheffield CCG,31/07/2017,Cont Care-Foundation Trust,CHC ADULT FULLY FUNDED,SHEFFIELD HEALTH & SOCIAL CARE NHS FOUNDATION TRUST,18011692,"249,977.83 "
Department of Health,NHS Sheffield CCG,31/07/2017,Cont Care- Adult 100% Fully Funded,CHC ADULT FULLY FUNDED,SOUTH YORKSHIRE HOUSING ASSOCIATION LTD,18011802,"103,949.00 "
Department of Health,NHS Sheffield CCG,31/07/2017,Cont Care- Adult 100% Fully Funded,CHC ADULT FULLY FUNDED,SOUTH YORKSHIRE HOUSING ASSOCIATION LTD,18011885,"25,000.00 "
Department of Health,NHS Sheffield CCG,31/07/2017,Cont Care-Physical Disab (<65),CHC ADULT FULLY FUNDED,LONGLEY HEALTH CARE LTD,18012028,"51,761.39 "
Department of Health,NHS Sheffield CCG,31/07/2017,Cont Care-Physical Disab (<65),CHC ADULT FULLY FUNDED,NEVILLE HEALTH CARE LTD,18012057,"57,576.26 "
Department of Health,NHS Sheffield CCG,31/07/2017,Cont Care-Physical Disab (<65),CHC ADULT FULLY FUNDED,WILLOWBECK HEALTH CARE LTD,18012071,"167,060.78 "
Department of Health,NHS Sheffield CCG,31/07/2017,Cont Care-Physical Disab (<65),CHC ADULT FULLY FUNDED,SOUTH YORKSHIRE HOUSING ASSOCIATION LTD,18012088,"82,727.24 "
Department of Health,NHS Sheffield CCG,31/07/2017,C&M-APMS Contract Value,PRC DELEGATED CO-COMMISSIONING,SHEFFIELD HEALTH & SOCIAL CARE NHS FOUNDATION TRUST,18012178,"(130,852.44)"
Department of Health,NHS Sheffield CCG,31/07/2017,C&M-APMS DES Minor Surgery,PRC DELEGATED CO-COMMISSIONING,SHEFFIELD HEALTH & SOCIAL CARE NHS FOUNDATION TRUST,18012178,(970.00)
Department of Health,NHS Sheffield CCG,31/07/2017,C&M-APMS OOH Opt Outs,PRC DELEGATED CO-COMMISSIONING,SHEFFIELD HEALTH & SOCIAL CARE NHS FOUNDATION TRUST,18012178,(79.54)
Department of Health,NHS Sheffield CCG,31/07/2017,C&M-APMS Prem Actual Rent,PRC DELEGATED CO-COMMISSIONING,SHEFFIELD HEALTH & SOCIAL CARE NHS FOUNDATION TRUST,18012178,"(72,375.47)"
Department of Health,NHS Sheffield CCG,31/07/2017,C&M-APMS Prem Healthcentre Rent,PRC DELEGATED CO-COMMISSIONING,SHEFFIELD HEALTH & SOCIAL CARE NHS FOUNDATION TRUST,18012178,"(635,966.74)"
Department of Health,NHS Sheffield CCG,31/07/2017,C&M-APMS Prem Notional Rent,PRC DELEGATED CO-COMMISSIONING,SHEFFIELD HEALTH & SOCIAL CARE NHS FOUNDATION TRUST,18012178,"(39,258.33)"
Department of Health,NHS Sheffield CCG,31/07/2017,C&M-APMS QOF Aspiration,PRC DELEGATED CO-COMMISSIONING,SHEFFIELD HEALTH & SOCIAL CARE NHS FOUNDATION TRUST,18012178,"(12,657.74)"
Department of Health,NHS Sheffield CCG,31/07/2017,C&M-PMS QOF Achievement,PRC DELEGATED CO-COMMISSIONING,SHEFFIELD HEALTH & SOCIAL CARE NHS FOUNDATION TRUST,18012178,"(50,936.01)"
Department of Health,NHS Sheffield CCG,31/07/2017,C&M-APMS Contract Value,PRC DELEGATED CO-COMMISSIONING,SHEFFIELD HEALTH & SOCIAL CARE NHS FOUNDATION TRUST,18017410,"158,260.22 "
Department of Health,NHS Sheffield CCG,31/07/2017,C&M-APMS OOH Opt Outs,PRC DELEGATED CO-COMMISSIONING,SHEFFIELD HEALTH & SOCIAL CARE NHS FOUNDATION TRUST,18017410,"(7,079.93)"
Department of Health,NHS Sheffield CCG,31/07/2017,C&M-APMS Prem Actual Rent,PRC DELEGATED CO-COMMISSIONING,SHEFFIELD HEALTH & SOCIAL CARE NHS FOUNDATION TRUST,18017410,"10,339.35 "
Department of Health,NHS Sheffield CCG,31/07/2017,C&M-APMS Prem Healthcentre Rent,PRC DELEGATED CO-COMMISSIONING,SHEFFIELD HEALTH & SOCIAL CARE NHS FOUNDATION TRUST,18017410,"116,546.26 "
Department of Health,NHS Sheffield CCG,31/07/2017,C&M-APMS Prem Notional Rent,PRC DELEGATED CO-COMMISSIONING,SHEFFIELD HEALTH & SOCIAL CARE NHS FOUNDATION TRUST,18017410,"5,608.33 "
Department of Health,NHS Sheffield CCG,31/07/2017,C&M-APMS QOF Aspiration,PRC DELEGATED CO-COMMISSIONING,SHEFFIELD HEALTH & SOCIAL CARE NHS FOUNDATION TRUST,18017410,"13,913.74 "
Department of Health,NHS Sheffield CCG,31/07/2017,C&M-PMS QOF Achievement,PRC DELEGATED CO-COMMISSIONING,SHEFFIELD HEALTH & SOCIAL CARE NHS FOUNDATION TRUST,18017410,"30,451.91 "
Department of Health,NHS Sheffield CCG,31/07/2017,Legal / Prof Fees,CONTINUING HEALTHCARE ASSESSMENT & SUPPORT,BROWNE JACOBSON LLP,18047480,"22,904.85 "
Department of Health,NHS Sheffield CCG,31/07/2017,Cont Care-Physical Disab (<65),CHC ADULT FULLY FUNDED,LOXLEY HEALTH CARE LTD,18047690,"42,704.88 "
Department of Health,NHS Sheffield CCG,31/07/2017,Cont Care-Physical Disab (<65),CHC ADULT FULLY FUNDED,WESTBOURNE HOUSE NURSING HOME,18047721,"30,058.03 "
Department of Health,NHS Sheffield CCG,31/07/2017,Cont Care-Physical Disab (<65),CHC ADULT FULLY FUNDED,ALPINE HEALTH CARE,18047731,"28,727.59 "
Department of Health,NHS Sheffield CCG,31/07/2017,Cont Care-Physical Disab (<65),CHC ADULT FULLY FUNDED,FAIRWINDS HEALTH CARE LTD,18047789,"43,482.80 "
Department of Health,NHS Sheffield CCG,31/07/2017,Cont Care-Physical Disab (<65),CHC ADULT FULLY FUNDED,ROSEBERRY CARE CENTRES,18047902,"30,612.93 "
Department of Health,NHS Sheffield CCG,31/07/2017,Cont Care-Physical Disab (<65),CHC ADULT FULLY FUNDED,ROSEBERRY CARE CENTRES,18047910,"29,568.79 "
Department of Health,NHS Sheffield CCG,31/07/2017,Cont Care-Physical Disab (<65),CHC ADULT FULLY FUNDED,HORIZON CARE HOMES LTD,18047923,"42,455.84 "
Department of Health,NHS Sheffield CCG,31/07/2017,Cont Care-Funded Nursing Care Allow,FUNDED NURSING CARE,COUNTRY COURT CARE LTD,18047932,"28,212.93 "
Department of Health,NHS Sheffield CCG,31/07/2017,Cont Care-Physical Disab (<65),CHC ADULT FULLY FUNDED,SEVEN HILLS NURSING HOME,18048047,"39,542.94 "
Department of Health,NHS Sheffield CCG,31/07/2017,Cont Care-Physical Disab (<65),CHC ADULT FULLY FUNDED,HORIZON CARE HOMES LTD,18048065,"35,778.05 "
Department of Health,NHS Sheffield CCG,31/07/2017,Cont Care-Physical Disab (<65),CHC ADULT FULLY FUNDED,HC ONE LTD,18048101,"27,204.70 "
Department of Health,NHS Sheffield CCG,31/07/2017,Cont Care-Physical Disab (<65),CHC ADULT FULLY FUNDED,ROSEBERRY CARE CENTRES,18048168,"31,214.91 "
Department of Health,NHS Sheffield CCG,31/07/2017,Cont Care-Funded Nursing Care Allow,FUNDED NURSING CARE,ROSEBERRY CARE CENTRES,18048256,"37,550.90 "
Department of Health,NHS Sheffield CCG,31/07/2017,Cont Care-Funded Nursing Care Allow,FUNDED NURSING CARE,ULTIMA CARE CENTRES (NO1) LTD,18048325,"37,016.59 "
Department of Health,NHS Sheffield CCG,31/07/2017,Cont Care-Funded Nursing Care Allow,FUNDED NURSING CARE,ROSEBERRY CARE CENTRES,18048347,"28,301.19 "
Department of Health,NHS Sheffield CCG,31/07/2017,Cont Care-Learning Disab(<65),CHC ADULT FULLY FUNDED,SUN HEALTHCARE LTD,18051695,"25,155.00 "
Department of Health,NHS Sheffield CCG,31/07/2017,Hcare Srv Rec Fdtn Trust-Contract Baseline,MENTAL HEALTH CONTRACTS,SHEFFIELD HEALTH & SOCIAL CARE NHS FOUNDATION TRUST,18069750,"43,493.80 "
Department of Health,NHS Sheffield CCG,31/07/2017,Clinical&Medical-Othe Public Sector,CHILD AND ADOLESCENT MENTAL HEALTH,SHEFFIELD CITY COUNCIL,18086904,"239,476.00 "
Department of Health,NHS Sheffield CCG,31/07/2017,Clinical&Medical-Independent Sector,MENTAL HEALTH CONTRACTS,SOUTH YORKSHIRE HOUSING ASSOCIATION LTD,18086952,"34,435.00 "
Department of Health,NHS Sheffield CCG,31/07/2017,Clinical&Medical-Independent Sector,MENTAL HEALTH CONTRACTS,SUSASH GB LTD T/A EAGLE HOUSE,18086959,"30,092.00 "
Department of Health,NHS Sheffield CCG,31/07/2017,Clinical&Medical-Othe Public Sector,CHILD AND ADOLESCENT MENTAL HEALTH,SHEFFIELD CITY COUNCIL,18086988,"(239,476.00)"
Department of Health,NHS Sheffield CCG,31/07/2017,Clinical&Medical-Independent Sector,ACUTE COMMISSIONING,BMI HEALTHCARE COLLECTIONS,18086989,"28,985.43 "
Department of Health,NHS Sheffield CCG,31/07/2017,C&M-APMS Contract Value,PRC DELEGATED CO-COMMISSIONING,SHEFFIELD HEALTH & SOCIAL CARE NHS FOUNDATION TRUST,18088146,"(119,551.04)"
Department of Health,NHS Sheffield CCG,31/07/2017,C&M-APMS DES Extended Hours Access,PRC DELEGATED CO-COMMISSIONING,SHEFFIELD HEALTH & SOCIAL CARE NHS FOUNDATION TRUST,18088146,"(7,777.65)"
Department of Health,NHS Sheffield CCG,31/07/2017,C&M-APMS OOH Opt Outs,PRC DELEGATED CO-COMMISSIONING,SHEFFIELD HEALTH & SOCIAL CARE NHS FOUNDATION TRUST,18088146,(25.66)
Department of Health,NHS Sheffield CCG,31/07/2017,C&M-APMS Prem Actual Rent,PRC DELEGATED CO-COMMISSIONING,SHEFFIELD HEALTH & SOCIAL CARE NHS FOUNDATION TRUST,18088146,"(10,339.36)"
Department of Health,NHS Sheffield CCG,31/07/2017,C&M-APMS Prem Healthcentre Rent,PRC DELEGATED CO-COMMISSIONING,SHEFFIELD HEALTH & SOCIAL CARE NHS FOUNDATION TRUST,18088146,"(116,546.26)"
Department of Health,NHS Sheffield CCG,31/07/2017,C&M-APMS Prem Notional Rent,PRC DELEGATED CO-COMMISSIONING,SHEFFIELD HEALTH & SOCIAL CARE NHS FOUNDATION TRUST,18088146,"(5,608.34)"
Department of Health,NHS Sheffield CCG,31/07/2017,C&M-PMS Out of Hours Opt Outs,PRC DELEGATED CO-COMMISSIONING,SHEFFIELD HEALTH & SOCIAL CARE NHS FOUNDATION TRUST,18088146,"(2,561.89)"
Department of Health,NHS Sheffield CCG,31/07/2017,C&M-PMS QOF Aspiration,PRC DELEGATED CO-COMMISSIONING,SHEFFIELD HEALTH & SOCIAL CARE NHS FOUNDATION TRUST,18088146,"(12,657.74)"
Department of Health,NHS Sheffield CCG,31/07/2017,C&M-APMS Contract Value,PRC DELEGATED CO-COMMISSIONING,SHEFFIELD HEALTH & SOCIAL CARE NHS FOUNDATION TRUST,18091408,"119,551.04 "
Department of Health,NHS Sheffield CCG,31/07/2017,C&M-APMS DES Extended Hours Access,PRC DELEGATED CO-COMMISSIONING,SHEFFIELD HEALTH & SOCIAL CARE NHS FOUNDATION TRUST,18091408,"7,777.65 "
Department of Health,NHS Sheffield CCG,31/07/2017,C&M-APMS OOH Opt Outs,PRC DELEGATED CO-COMMISSIONING,SHEFFIELD HEALTH & SOCIAL CARE NHS FOUNDATION TRUST,18091408,25.66 
Department of Health,NHS Sheffield CCG,31/07/2017,C&M-PMS Out of Hours Opt Outs,PRC DELEGATED CO-COMMISSIONING,SHEFFIELD HEALTH & SOCIAL CARE NHS FOUNDATION TRUST,18091408,"2,561.89 "
Department of Health,NHS Sheffield CCG,31/07/2017,C&M-PMS QOF Aspiration,PRC DELEGATED CO-COMMISSIONING,SHEFFIELD HEALTH & SOCIAL CARE NHS FOUNDATION TRUST,18091408,"12,657.74 "
Department of Health,NHS Sheffield CCG,31/07/2017,C&M-GMS Global Sum,PRC DELEGATED CO-COMMISSIONING,BASLOW ROAD & SHOREHAM STREET SURGERIES,18169132,"92,294.84 "
Department of Health,NHS Sheffield CCG,31/07/2017,C&M-GMS MPIG Correction Factor,PRC DELEGATED CO-COMMISSIONING,BASLOW ROAD & SHOREHAM STREET SURGERIES,18169132,438.64 
Department of Health,NHS Sheffield CCG,31/07/2017,C&M-GMS Prem Notional Rent,PRC DELEGATED CO-COMMISSIONING,BASLOW ROAD & SHOREHAM STREET SURGERIES,18169132,"8,511.25 "
Department of Health,NHS Sheffield CCG,31/07/2017,C&M-GMS Prem Rates,PRC DELEGATED CO-COMMISSIONING,BASLOW ROAD & SHOREHAM STREET SURGERIES,18169132,"2,062.00 "
Department of Health,NHS Sheffield CCG,31/07/2017,C&M-GMS QOF Aspiration,PRC DELEGATED CO-COMMISSIONING,BASLOW ROAD & SHOREHAM STREET SURGERIES,18169132,"10,284.12 "
Department of Health,NHS Sheffield CCG,31/07/2017,C&M-GMS Cost of Drugs -Prescribing,LOCAL ENHANCED SERVICES,BUCHANAN ROAD SURGERY,18169135,102.10 
Department of Health,NHS Sheffield CCG,31/07/2017,C&M-GMS Global Sum,PRC DELEGATED CO-COMMISSIONING,BUCHANAN ROAD SURGERY,18169135,"34,944.36 "
Department of Health,NHS Sheffield CCG,31/07/2017,C&M-GMS MPIG Correction Factor,PRC DELEGATED CO-COMMISSIONING,BUCHANAN ROAD SURGERY,18169135,"1,965.76 "
Department of Health,NHS Sheffield CCG,31/07/2017,C&M-GMS Prem Notional Rent,PRC DELEGATED CO-COMMISSIONING,BUCHANAN ROAD SURGERY,18169135,"2,595.83 "
Department of Health,NHS Sheffield CCG,31/07/2017,C&M-GMS Prem Rates,PRC DELEGATED CO-COMMISSIONING,BUCHANAN ROAD SURGERY,18169135,839.00 
Department of Health,NHS Sheffield CCG,31/07/2017,C&M-GMS Prof Fees Prescribing,PRC DELEGATED CO-COMMISSIONING,BUCHANAN ROAD SURGERY,18169135,37.02 
Department of Health,NHS Sheffield CCG,31/07/2017,C&M-GMS QOF Aspiration,PRC DELEGATED CO-COMMISSIONING,BUCHANAN ROAD SURGERY,18169135,"4,538.47 "
Department of Health,NHS Sheffield CCG,31/07/2017,C&M-GMS Cost of Drugs -Prescribing,LOCAL ENHANCED SERVICES,BROOMHILL SURGERY,18169139,"2,208.40 "
Department of Health,NHS Sheffield CCG,31/07/2017,C&M-GMS Global Sum,PRC DELEGATED CO-COMMISSIONING,BROOMHILL SURGERY,18169139,"60,368.19 "
Department of Health,NHS Sheffield CCG,31/07/2017,C&M-GMS MPIG Correction Factor,PRC DELEGATED CO-COMMISSIONING,BROOMHILL SURGERY,18169139,753.01 
Department of Health,NHS Sheffield CCG,31/07/2017,C&M-GMS PCO Locum Adop/Pat/Mat,PRC DELEGATED CO-COMMISSIONING,BROOMHILL SURGERY,18169139,"4,969.45 "
Department of Health,NHS Sheffield CCG,31/07/2017,C&M-GMS Prem Cost Rent,PRC DELEGATED CO-COMMISSIONING,BROOMHILL SURGERY,18169139,"3,380.00 "
Department of Health,NHS Sheffield CCG,31/07/2017,C&M-GMS Prem Notional Rent,PRC DELEGATED CO-COMMISSIONING,BROOMHILL SURGERY,18169139,"2,541.67 "
Department of Health,NHS Sheffield CCG,31/07/2017,C&M-GMS Prem Rates,PRC DELEGATED CO-COMMISSIONING,BROOMHILL SURGERY,18169139,"1,794.00 "
Department of Health,NHS Sheffield CCG,31/07/2017,C&M-GMS Prof Fees Prescribing,PRC DELEGATED CO-COMMISSIONING,BROOMHILL SURGERY,18169139,124.96 
Department of Health,NHS Sheffield CCG,31/07/2017,C&M-GMS QOF Achievement,PRC DELEGATED CO-COMMISSIONING,BROOMHILL SURGERY,18169139,"27,780.85 "
Department of Health,NHS Sheffield CCG,31/07/2017,C&M-GMS QOF Aspiration,PRC DELEGATED CO-COMMISSIONING,BROOMHILL SURGERY,18169139,"6,516.86 "
Department of Health,NHS Sheffield CCG,31/07/2017,C&M-GMS Cost of Drugs -Prescribing,LOCAL ENHANCED SERVICES,CHARNOCK HEALTH PRIMARY CARE CENTRE,18169141,535.51 
Department of Health,NHS Sheffield CCG,31/07/2017,C&M-GMS Global Sum,PRC DELEGATED CO-COMMISSIONING,CHARNOCK HEALTH PRIMARY CARE CENTRE,18169141,"38,204.75 "
Department of Health,NHS Sheffield CCG,31/07/2017,C&M-GMS MPIG Correction Factor,PRC DELEGATED CO-COMMISSIONING,CHARNOCK HEALTH PRIMARY CARE CENTRE,18169141,619.87 
Department of Health,NHS Sheffield CCG,31/07/2017,C&M-GMS PCO Other,PRC DELEGATED CO-COMMISSIONING,CHARNOCK HEALTH PRIMARY CARE CENTRE,18169141,452.60 
Department of Health,NHS Sheffield CCG,31/07/2017,C&M-GMS Prem Actual Rent,PRC DELEGATED CO-COMMISSIONING,CHARNOCK HEALTH PRIMARY CARE CENTRE,18169141,"18,300.00 "
Department of Health,NHS Sheffield CCG,31/07/2017,C&M-GMS Prem Notional Rent,PRC DELEGATED CO-COMMISSIONING,CHARNOCK HEALTH PRIMARY CARE CENTRE,18169141,305.00 
Department of Health,NHS Sheffield CCG,31/07/2017,C&M-GMS Prem Rates,PRC DELEGATED CO-COMMISSIONING,CHARNOCK HEALTH PRIMARY CARE CENTRE,18169141,"11,051.00 "
Department of Health,NHS Sheffield CCG,31/07/2017,C&M-GMS Prof Fees Prescribing,PRC DELEGATED CO-COMMISSIONING,CHARNOCK HEALTH PRIMARY CARE CENTRE,18169141,127.27 
Department of Health,NHS Sheffield CCG,31/07/2017,C&M-GMS QOF Aspiration,PRC DELEGATED CO-COMMISSIONING,CHARNOCK HEALTH PRIMARY CARE CENTRE,18169141,"4,669.55 "
Department of Health,NHS Sheffield CCG,31/07/2017,C&M-GMS Cost of Drugs -Prescribing,LOCAL ENHANCED SERVICES,CARTERKNOWLE & DORE MEDICAL PRACTICE,18169144,"1,180.71 "
Department of Health,NHS Sheffield CCG,31/07/2017,C&M-GMS Global Sum,PRC DELEGATED CO-COMMISSIONING,CARTERKNOWLE & DORE MEDICAL PRACTICE,18169144,"79,448.87 "
Department of Health,NHS Sheffield CCG,31/07/2017,C&M-GMS MPIG Correction Factor,PRC DELEGATED CO-COMMISSIONING,CARTERKNOWLE & DORE MEDICAL PRACTICE,18169144,"2,241.88 "
Department of Health,NHS Sheffield CCG,31/07/2017,C&M-GMS Prem Notional Rent,PRC DELEGATED CO-COMMISSIONING,CARTERKNOWLE & DORE MEDICAL PRACTICE,18169144,"7,538.34 "
Department of Health,NHS Sheffield CCG,31/07/2017,C&M-GMS Prem Rates,PRC DELEGATED CO-COMMISSIONING,CARTERKNOWLE & DORE MEDICAL PRACTICE,18169144,"3,291.20 "
Department of Health,NHS Sheffield CCG,31/07/2017,C&M-GMS Prof Fees Prescribing,PRC DELEGATED CO-COMMISSIONING,CARTERKNOWLE & DORE MEDICAL PRACTICE,18169144,229.08 
Department of Health,NHS Sheffield CCG,31/07/2017,C&M-GMS QOF Aspiration,PRC DELEGATED CO-COMMISSIONING,CARTERKNOWLE & DORE MEDICAL PRACTICE,18169144,"10,317.62 "
Department of Health,NHS Sheffield CCG,31/07/2017,C&M-GMS Cost of Drugs -Prescribing,LOCAL ENHANCED SERVICES,CROOKES PRACTICE,18169148,669.30 
Department of Health,NHS Sheffield CCG,31/07/2017,C&M-GMS Global Sum,PRC DELEGATED CO-COMMISSIONING,CROOKES PRACTICE,18169148,"46,674.80 "
Department of Health,NHS Sheffield CCG,31/07/2017,C&M-GMS MPIG Correction Factor,PRC DELEGATED CO-COMMISSIONING,CROOKES PRACTICE,18169148,"2,318.88 "
Department of Health,NHS Sheffield CCG,31/07/2017,C&M-GMS PCO Other,PRC DELEGATED CO-COMMISSIONING,CROOKES PRACTICE,18169148,452.60 
Department of Health,NHS Sheffield CCG,31/07/2017,C&M-GMS Prem Notional Rent,PRC DELEGATED CO-COMMISSIONING,CROOKES PRACTICE,18169148,"3,752.42 "
Department of Health,NHS Sheffield CCG,31/07/2017,C&M-GMS Prem Rates,PRC DELEGATED CO-COMMISSIONING,CROOKES PRACTICE,18169148,"1,444.00 "
Department of Health,NHS Sheffield CCG,31/07/2017,C&M-GMS Prem Water Rates,PRC DELEGATED CO-COMMISSIONING,CROOKES PRACTICE,18169148,215.05 
Department of Health,NHS Sheffield CCG,31/07/2017,C&M-GMS Prof Fees Prescribing,PRC DELEGATED CO-COMMISSIONING,CROOKES PRACTICE,18169148,113.40 
Department of Health,NHS Sheffield CCG,31/07/2017,C&M-GMS QOF Aspiration,PRC DELEGATED CO-COMMISSIONING,CROOKES PRACTICE,18169148,"4,702.76 "
Department of Health,NHS Sheffield CCG,31/07/2017,C&M-GMS Cost of Drugs -Prescribing,LOCAL ENHANCED SERVICES,CROOKES VALLEY MEDICAL CENTRE,18169150,118.32 
Department of Health,NHS Sheffield CCG,31/07/2017,C&M-GMS Global Sum,PRC DELEGATED CO-COMMISSIONING,CROOKES VALLEY MEDICAL CENTRE,18169150,"14,910.58 "
Department of Health,NHS Sheffield CCG,31/07/2017,C&M-GMS MPIG Correction Factor,PRC DELEGATED CO-COMMISSIONING,CROOKES VALLEY MEDICAL CENTRE,18169150,153.04 
Department of Health,NHS Sheffield CCG,31/07/2017,C&M-GMS PCO Other,PRC DELEGATED CO-COMMISSIONING,CROOKES VALLEY MEDICAL CENTRE,18169150,384.50 
Department of Health,NHS Sheffield CCG,31/07/2017,C&M-GMS Prem Notional Rent,PRC DELEGATED CO-COMMISSIONING,CROOKES VALLEY MEDICAL CENTRE,18169150,"1,166.67 "
Department of Health,NHS Sheffield CCG,31/07/2017,C&M-GMS Prof Fees Prescribing,PRC DELEGATED CO-COMMISSIONING,CROOKES VALLEY MEDICAL CENTRE,18169150,41.65 
Department of Health,NHS Sheffield CCG,31/07/2017,C&M-GMS QOF Achievement,PRC DELEGATED CO-COMMISSIONING,CROOKES VALLEY MEDICAL CENTRE,18169150,"6,281.63 "
Department of Health,NHS Sheffield CCG,31/07/2017,C&M-GMS QOF Aspiration,PRC DELEGATED CO-COMMISSIONING,CROOKES VALLEY MEDICAL CENTRE,18169150,"1,963.58 "
Department of Health,NHS Sheffield CCG,31/07/2017,C&M-GMS Cost of Drugs -Prescribing,LOCAL ENHANCED SERVICES,DEVONSHIRE GREEN MEDICAL CENTRE,18169153,873.22 
Department of Health,NHS Sheffield CCG,31/07/2017,C&M-GMS DES UNPLANNED ADMISSIONS,PRC DELEGATED CO-COMMISSIONING,DEVONSHIRE GREEN MEDICAL CENTRE,18169153,"5,195.96 "
Department of Health,NHS Sheffield CCG,31/07/2017,C&M-GMS Global Sum,PRC DELEGATED CO-COMMISSIONING,DEVONSHIRE GREEN MEDICAL CENTRE,18169153,"44,085.33 "
Department of Health,NHS Sheffield CCG,31/07/2017,C&M-GMS MPIG Correction Factor,PRC DELEGATED CO-COMMISSIONING,DEVONSHIRE GREEN MEDICAL CENTRE,18169153,"4,846.80 "
Department of Health,NHS Sheffield CCG,31/07/2017,C&M-GMS Prem Notional Rent,PRC DELEGATED CO-COMMISSIONING,DEVONSHIRE GREEN MEDICAL CENTRE,18169153,"5,987.50 "
Department of Health,NHS Sheffield CCG,31/07/2017,C&M-GMS Prof Fees Prescribing,PRC DELEGATED CO-COMMISSIONING,DEVONSHIRE GREEN MEDICAL CENTRE,18169153,134.21 
Department of Health,NHS Sheffield CCG,31/07/2017,C&M-GMS QOF Aspiration,PRC DELEGATED CO-COMMISSIONING,DEVONSHIRE GREEN MEDICAL CENTRE,18169153,"5,205.83 "
Department of Health,NHS Sheffield CCG,31/07/2017,C&M-GMS Cost of Drugs -Prescribing,LOCAL ENHANCED SERVICES,ECCLESFIELD GROUP PRACTICE,18169157,"1,651.73 "
Department of Health,NHS Sheffield CCG,31/07/2017,C&M-GMS Global Sum,PRC DELEGATED CO-COMMISSIONING,ECCLESFIELD GROUP PRACTICE,18169157,"62,770.47 "
Department of Health,NHS Sheffield CCG,31/07/2017,C&M-GMS PCO Locum Adop/Pat/Mat,PRC DELEGATED CO-COMMISSIONING,ECCLESFIELD GROUP PRACTICE,18169157,"8,670.90 "
Department of Health,NHS Sheffield CCG,31/07/2017,C&M-GMS PCO Other,PRC DELEGATED CO-COMMISSIONING,ECCLESFIELD GROUP PRACTICE,18169157,452.60 
Department of Health,NHS Sheffield CCG,31/07/2017,C&M-GMS Prem Notional Rent,PRC DELEGATED CO-COMMISSIONING,ECCLESFIELD GROUP PRACTICE,18169157,"7,076.68 "
Department of Health,NHS Sheffield CCG,31/07/2017,C&M-GMS Prem Rates,PRC DELEGATED CO-COMMISSIONING,ECCLESFIELD GROUP PRACTICE,18169157,"2,055.00 "
Department of Health,NHS Sheffield CCG,31/07/2017,C&M-GMS Prof Fees Prescribing,PRC DELEGATED CO-COMMISSIONING,ECCLESFIELD GROUP PRACTICE,18169157,178.17 
Department of Health,NHS Sheffield CCG,31/07/2017,C&M-GMS QOF Aspiration,PRC DELEGATED CO-COMMISSIONING,ECCLESFIELD GROUP PRACTICE,18169157,"10,399.72 "
Department of Health,NHS Sheffield CCG,31/07/2017,C&M-GMS Cost of Drugs -Prescribing,LOCAL ENHANCED SERVICES,ELM LANE SURGERY,18169159,988.05 
Department of Health,NHS Sheffield CCG,31/07/2017,C&M-GMS Global Sum,PRC DELEGATED CO-COMMISSIONING,ELM LANE SURGERY,18169159,"37,805.40 "
Department of Health,NHS Sheffield CCG,31/07/2017,C&M-GMS MPIG Correction Factor,PRC DELEGATED CO-COMMISSIONING,ELM LANE SURGERY,18169159,"1,257.79 "
Department of Health,NHS Sheffield CCG,31/07/2017,C&M-GMS Prem Notional Rent,PRC DELEGATED CO-COMMISSIONING,ELM LANE SURGERY,18169159,"5,168.50 "
Department of Health,NHS Sheffield CCG,31/07/2017,C&M-GMS Prem Rates,PRC DELEGATED CO-COMMISSIONING,ELM LANE SURGERY,18169159,"15,322.00 "
Department of Health,NHS Sheffield CCG,31/07/2017,C&M-GMS Prof Fees Prescribing,PRC DELEGATED CO-COMMISSIONING,ELM LANE SURGERY,18169159,136.52 
Department of Health,NHS Sheffield CCG,31/07/2017,C&M-GMS QOF Aspiration,PRC DELEGATED CO-COMMISSIONING,ELM LANE SURGERY,18169159,"4,880.72 "
Department of Health,NHS Sheffield CCG,31/07/2017,C&M-GMS Cost of Drugs -Prescribing,LOCAL ENHANCED SERVICES,DUKE MEDICAL CENTRE,18169161,566.82 
Department of Health,NHS Sheffield CCG,31/07/2017,C&M-GMS Global Sum,PRC DELEGATED CO-COMMISSIONING,DUKE MEDICAL CENTRE,18169161,"53,346.41 "
Department of Health,NHS Sheffield CCG,31/07/2017,C&M-GMS MPIG Correction Factor,PRC DELEGATED CO-COMMISSIONING,DUKE MEDICAL CENTRE,18169161,918.76 
Department of Health,NHS Sheffield CCG,31/07/2017,C&M-GMS Prem Notional Rent,PRC DELEGATED CO-COMMISSIONING,DUKE MEDICAL CENTRE,18169161,"5,721.67 "
Department of Health,NHS Sheffield CCG,31/07/2017,C&M-GMS Prof Fees Prescribing,PRC DELEGATED CO-COMMISSIONING,DUKE MEDICAL CENTRE,18169161,212.88 
Department of Health,NHS Sheffield CCG,31/07/2017,C&M-GMS QOF Aspiration,PRC DELEGATED CO-COMMISSIONING,DUKE MEDICAL CENTRE,18169161,"5,346.37 "
Department of Health,NHS Sheffield CCG,31/07/2017,C&M-GMS Cost of Drugs -Prescribing,LOCAL ENHANCED SERVICES,FAR LANE MEDICAL CENTRE,18169169,451.24 
Department of Health,NHS Sheffield CCG,31/07/2017,C&M-GMS Global Sum,PRC DELEGATED CO-COMMISSIONING,FAR LANE MEDICAL CENTRE,18169169,"53,465.05 "
Department of Health,NHS Sheffield CCG,31/07/2017,C&M-GMS PCO Other,PRC DELEGATED CO-COMMISSIONING,FAR LANE MEDICAL CENTRE,18169169,452.60 
Department of Health,NHS Sheffield CCG,31/07/2017,C&M-GMS Prem Notional Rent,PRC DELEGATED CO-COMMISSIONING,FAR LANE MEDICAL CENTRE,18169169,"3,462.50 "
Department of Health,NHS Sheffield CCG,31/07/2017,C&M-GMS Prem Rates,PRC DELEGATED CO-COMMISSIONING,FAR LANE MEDICAL CENTRE,18169169,"1,053.00 "
Department of Health,NHS Sheffield CCG,31/07/2017,C&M-GMS Prem Water Rates,PRC DELEGATED CO-COMMISSIONING,FAR LANE MEDICAL CENTRE,18169169,77.88 
Department of Health,NHS Sheffield CCG,31/07/2017,C&M-GMS Prof Fees Prescribing,PRC DELEGATED CO-COMMISSIONING,FAR LANE MEDICAL CENTRE,18169169,124.96 
Department of Health,NHS Sheffield CCG,31/07/2017,C&M-GMS QOF Aspiration,PRC DELEGATED CO-COMMISSIONING,FAR LANE MEDICAL CENTRE,18169169,"6,224.50 "
Department of Health,NHS Sheffield CCG,31/07/2017,C&M-GMS Cost of Drugs -Prescribing,LOCAL ENHANCED SERVICES,HANDSWORTH MEDICAL PRACTICE SHEFFIELD,18169174,684.30 
Department of Health,NHS Sheffield CCG,31/07/2017,C&M-GMS Global Sum,PRC DELEGATED CO-COMMISSIONING,HANDSWORTH MEDICAL PRACTICE SHEFFIELD,18169174,"71,741.75 "
Department of Health,NHS Sheffield CCG,31/07/2017,C&M-GMS PCO Locum Adop/Pat/Mat,PRC DELEGATED CO-COMMISSIONING,HANDSWORTH MEDICAL PRACTICE SHEFFIELD,18169174,"3,492.21 "
Department of Health,NHS Sheffield CCG,31/07/2017,C&M-GMS Prem Notional Rent,PRC DELEGATED CO-COMMISSIONING,HANDSWORTH MEDICAL PRACTICE SHEFFIELD,18169174,"3,321.66 "
Department of Health,NHS Sheffield CCG,31/07/2017,C&M-GMS Prem Rates,PRC DELEGATED CO-COMMISSIONING,HANDSWORTH MEDICAL PRACTICE SHEFFIELD,18169174,"1,214.00 "
Department of Health,NHS Sheffield CCG,31/07/2017,C&M-GMS Prof Fees Prescribing,PRC DELEGATED CO-COMMISSIONING,HANDSWORTH MEDICAL PRACTICE SHEFFIELD,18169174,171.24 
Department of Health,NHS Sheffield CCG,31/07/2017,C&M-GMS QOF Aspiration,PRC DELEGATED CO-COMMISSIONING,HANDSWORTH MEDICAL PRACTICE SHEFFIELD,18169174,"8,011.43 "
Department of Health,NHS Sheffield CCG,31/07/2017,C&M-GMS Cost of Drugs -Prescribing,LOCAL ENHANCED SERVICES,GRENOSIDE SURGERY,18169176,"1,021.12 "
Department of Health,NHS Sheffield CCG,31/07/2017,C&M-GMS Global Sum,PRC DELEGATED CO-COMMISSIONING,GRENOSIDE SURGERY,18169176,"53,914.45 "
Department of Health,NHS Sheffield CCG,31/07/2017,C&M-GMS PCO Locum Adop/Pat/Mat,PRC DELEGATED CO-COMMISSIONING,GRENOSIDE SURGERY,18169176,"14,052.14 "
Department of Health,NHS Sheffield CCG,31/07/2017,C&M-GMS PCO Other,PRC DELEGATED CO-COMMISSIONING,GRENOSIDE SURGERY,18169176,452.60 
Department of Health,NHS Sheffield CCG,31/07/2017,C&M-GMS Prem Notional Rent,PRC DELEGATED CO-COMMISSIONING,GRENOSIDE SURGERY,18169176,"8,150.17 "
Department of Health,NHS Sheffield CCG,31/07/2017,C&M-GMS Prem Rates,PRC DELEGATED CO-COMMISSIONING,GRENOSIDE SURGERY,18169176,"1,643.00 "
Department of Health,NHS Sheffield CCG,31/07/2017,C&M-GMS Prof Fees Prescribing,PRC DELEGATED CO-COMMISSIONING,GRENOSIDE SURGERY,18169176,106.45 
Department of Health,NHS Sheffield CCG,31/07/2017,C&M-GMS QOF Aspiration,PRC DELEGATED CO-COMMISSIONING,GRENOSIDE SURGERY,18169176,"6,197.70 "
Department of Health,NHS Sheffield CCG,31/07/2017,C&M-GMS Cost of Drugs -Prescribing,LOCAL ENHANCED SERVICES,HEELEY GREEN SURGERY,18169179,401.77 
Department of Health,NHS Sheffield CCG,31/07/2017,C&M-GMS Global Sum,PRC DELEGATED CO-COMMISSIONING,HEELEY GREEN SURGERY,18169179,"39,215.99 "
Department of Health,NHS Sheffield CCG,31/07/2017,C&M-GMS MPIG Correction Factor,PRC DELEGATED CO-COMMISSIONING,HEELEY GREEN SURGERY,18169179,564.30 
Department of Health,NHS Sheffield CCG,31/07/2017,C&M-GMS Prem Notional Rent,PRC DELEGATED CO-COMMISSIONING,HEELEY GREEN SURGERY,18169179,"3,254.17 "
Department of Health,NHS Sheffield CCG,31/07/2017,C&M-GMS Prem Rates,PRC DELEGATED CO-COMMISSIONING,HEELEY GREEN SURGERY,18169179,245.00 
Department of Health,NHS Sheffield CCG,31/07/2017,C&M-GMS Prof Fees Prescribing,PRC DELEGATED CO-COMMISSIONING,HEELEY GREEN SURGERY,18169179,97.19 
Department of Health,NHS Sheffield CCG,31/07/2017,C&M-GMS QOF Aspiration,PRC DELEGATED CO-COMMISSIONING,HEELEY GREEN SURGERY,18169179,"4,920.38 "
Department of Health,NHS Sheffield CCG,31/07/2017,C&M-GMS Cost of Drugs -Prescribing,LOCAL ENHANCED SERVICES,HEALTH CARE SURGERY,18169182,739.69 
Department of Health,NHS Sheffield CCG,31/07/2017,C&M-GMS Global Sum,PRC DELEGATED CO-COMMISSIONING,HEALTH CARE SURGERY,18169182,"36,037.78 "
Department of Health,NHS Sheffield CCG,31/07/2017,C&M-GMS MPIG Correction Factor,PRC DELEGATED CO-COMMISSIONING,HEALTH CARE SURGERY,18169182,"1,170.03 "
Department of Health,NHS Sheffield CCG,31/07/2017,C&M-GMS PCO Other,PRC DELEGATED CO-COMMISSIONING,HEALTH CARE SURGERY,18169182,384.50 
Department of Health,NHS Sheffield CCG,31/07/2017,C&M-GMS Prem Notional Rent,PRC DELEGATED CO-COMMISSIONING,HEALTH CARE SURGERY,18169182,"3,862.50 "
Department of Health,NHS Sheffield CCG,31/07/2017,C&M-GMS Prem Rates,PRC DELEGATED CO-COMMISSIONING,HEALTH CARE SURGERY,18169182,518.00 
Department of Health,NHS Sheffield CCG,31/07/2017,C&M-GMS Prof Fees Prescribing,PRC DELEGATED CO-COMMISSIONING,HEALTH CARE SURGERY,18169182,71.73 
Department of Health,NHS Sheffield CCG,31/07/2017,C&M-GMS QOF Aspiration,PRC DELEGATED CO-COMMISSIONING,HEALTH CARE SURGERY,18169182,"4,381.71 "
Department of Health,NHS Sheffield CCG,31/07/2017,C&M-GMS Cost of Drugs -Prescribing,LOCAL ENHANCED SERVICES,MEDICAL CENTRE CRYSTAL PEAKS,18169186,809.09 
Department of Health,NHS Sheffield CCG,31/07/2017,C&M-GMS Global Sum,PRC DELEGATED CO-COMMISSIONING,MEDICAL CENTRE CRYSTAL PEAKS,18169186,"43,411.71 "
Department of Health,NHS Sheffield CCG,31/07/2017,C&M-GMS MPIG Correction Factor,PRC DELEGATED CO-COMMISSIONING,MEDICAL CENTRE CRYSTAL PEAKS,18169186,"1,697.01 "
Department of Health,NHS Sheffield CCG,31/07/2017,C&M-GMS PCO Other,PRC DELEGATED CO-COMMISSIONING,MEDICAL CENTRE CRYSTAL PEAKS,18169186,452.60 
Department of Health,NHS Sheffield CCG,31/07/2017,C&M-GMS Prem Actual Rent,PRC DELEGATED CO-COMMISSIONING,MEDICAL CENTRE CRYSTAL PEAKS,18169186,"17,610.00 "
Department of Health,NHS Sheffield CCG,31/07/2017,C&M-GMS Prem Notional Rent,PRC DELEGATED CO-COMMISSIONING,MEDICAL CENTRE CRYSTAL PEAKS,18169186,270.00 
Department of Health,NHS Sheffield CCG,31/07/2017,C&M-GMS Prem Rates,PRC DELEGATED CO-COMMISSIONING,MEDICAL CENTRE CRYSTAL PEAKS,18169186,"1,822.00 "
Department of Health,NHS Sheffield CCG,31/07/2017,C&M-GMS Prof Fees Prescribing,PRC DELEGATED CO-COMMISSIONING,MEDICAL CENTRE CRYSTAL PEAKS,18169186,344.80 
Department of Health,NHS Sheffield CCG,31/07/2017,C&M-GMS QOF Aspiration,PRC DELEGATED CO-COMMISSIONING,MEDICAL CENTRE CRYSTAL PEAKS,18169186,"6,023.36 "
Department of Health,NHS Sheffield CCG,31/07/2017,C&M-GMS Cost of Drugs -Prescribing,LOCAL ENHANCED SERVICES,MANOR PARK MEDICAL CENTRE SHEFFIELD,18169192,569.94 
Department of Health,NHS Sheffield CCG,31/07/2017,C&M-GMS Global Sum,PRC DELEGATED CO-COMMISSIONING,MANOR PARK MEDICAL CENTRE SHEFFIELD,18169192,"33,032.73 "
Department of Health,NHS Sheffield CCG,31/07/2017,C&M-GMS MPIG Correction Factor,PRC DELEGATED CO-COMMISSIONING,MANOR PARK MEDICAL CENTRE SHEFFIELD,18169192,559.19 
Department of Health,NHS Sheffield CCG,31/07/2017,C&M-GMS Prem Notional Rent,PRC DELEGATED CO-COMMISSIONING,MANOR PARK MEDICAL CENTRE SHEFFIELD,18169192,"3,050.00 "
Department of Health,NHS Sheffield CCG,31/07/2017,C&M-GMS Prem Rates,PRC DELEGATED CO-COMMISSIONING,MANOR PARK MEDICAL CENTRE SHEFFIELD,18169192,428.00 
Department of Health,NHS Sheffield CCG,31/07/2017,C&M-GMS Prof Fees Prescribing,PRC DELEGATED CO-COMMISSIONING,MANOR PARK MEDICAL CENTRE SHEFFIELD,18169192,87.93 
Department of Health,NHS Sheffield CCG,31/07/2017,C&M-GMS QOF Aspiration,PRC DELEGATED CO-COMMISSIONING,MANOR PARK MEDICAL CENTRE SHEFFIELD,18169192,"4,479.66 "
Department of Health,NHS Sheffield CCG,31/07/2017,C&M-GMS Cost of Drugs -Prescribing,LOCAL ENHANCED SERVICES,MILL ROAD SURGERY SHEFFIELD,18169194,"1,198.04 "
Department of Health,NHS Sheffield CCG,31/07/2017,C&M-GMS DES UNPLANNED ADMISSIONS,PRC DELEGATED CO-COMMISSIONING,MILL ROAD SURGERY SHEFFIELD,18169194,"4,046.35 "
Department of Health,NHS Sheffield CCG,31/07/2017,C&M-GMS Global Sum,PRC DELEGATED CO-COMMISSIONING,MILL ROAD SURGERY SHEFFIELD,18169194,"37,785.02 "
Department of Health,NHS Sheffield CCG,31/07/2017,C&M-GMS MPIG Correction Factor,PRC DELEGATED CO-COMMISSIONING,MILL ROAD SURGERY SHEFFIELD,18169194,183.06 
Department of Health,NHS Sheffield CCG,31/07/2017,C&M-GMS PCO Other,PRC DELEGATED CO-COMMISSIONING,MILL ROAD SURGERY SHEFFIELD,18169194,452.60 
Department of Health,NHS Sheffield CCG,31/07/2017,C&M-GMS Prem Notional Rent,PRC DELEGATED CO-COMMISSIONING,MILL ROAD SURGERY SHEFFIELD,18169194,"4,587.50 "
Department of Health,NHS Sheffield CCG,31/07/2017,C&M-GMS Prem Rates,PRC DELEGATED CO-COMMISSIONING,MILL ROAD SURGERY SHEFFIELD,18169194,"3,332.85 "
Department of Health,NHS Sheffield CCG,31/07/2017,C&M-GMS Prof Fees Prescribing,PRC DELEGATED CO-COMMISSIONING,MILL ROAD SURGERY SHEFFIELD,18169194,115.69 
Department of Health,NHS Sheffield CCG,31/07/2017,C&M-GMS QOF Aspiration,PRC DELEGATED CO-COMMISSIONING,MILL ROAD SURGERY SHEFFIELD,18169194,"5,445.09 "
Department of Health,NHS Sheffield CCG,31/07/2017,C&M-GMS Cost of Drugs -Prescribing,LOCAL ENHANCED SERVICES,NORWOOD MEDICAL CENTRE SHEFFIELD,18169201,227.73 
Department of Health,NHS Sheffield CCG,31/07/2017,C&M-GMS Global Sum,PRC DELEGATED CO-COMMISSIONING,NORWOOD MEDICAL CENTRE SHEFFIELD,18169201,"60,950.79 "
Department of Health,NHS Sheffield CCG,31/07/2017,C&M-GMS PCO Other,PRC DELEGATED CO-COMMISSIONING,NORWOOD MEDICAL CENTRE SHEFFIELD,18169201,452.60 
Department of Health,NHS Sheffield CCG,31/07/2017,C&M-GMS Prem Notional Rent,PRC DELEGATED CO-COMMISSIONING,NORWOOD MEDICAL CENTRE SHEFFIELD,18169201,"5,187.50 "
Department of Health,NHS Sheffield CCG,31/07/2017,C&M-GMS Prof Fees Prescribing,PRC DELEGATED CO-COMMISSIONING,NORWOOD MEDICAL CENTRE SHEFFIELD,18169201,94.87 
Department of Health,NHS Sheffield CCG,31/07/2017,C&M-GMS QOF Aspiration,PRC DELEGATED CO-COMMISSIONING,NORWOOD MEDICAL CENTRE SHEFFIELD,18169201,"8,411.55 "
Department of Health,NHS Sheffield CCG,31/07/2017,C&M-GMS Cost of Drugs -Dispensing,LOCAL ENHANCED SERVICES,OUGHTIBRIDGE SURGERY,18169206,"33,651.08 "
Department of Health,NHS Sheffield CCG,31/07/2017,C&M-GMS Global Sum,PRC DELEGATED CO-COMMISSIONING,OUGHTIBRIDGE SURGERY,18169206,"41,235.48 "
Department of Health,NHS Sheffield CCG,31/07/2017,C&M-GMS Prem Notional Rent,PRC DELEGATED CO-COMMISSIONING,OUGHTIBRIDGE SURGERY,18169206,"3,888.33 "
Department of Health,NHS Sheffield CCG,31/07/2017,C&M-GMS Prem Water Rates,PRC DELEGATED CO-COMMISSIONING,OUGHTIBRIDGE SURGERY,18169206,166.20 
Department of Health,NHS Sheffield CCG,31/07/2017,C&M-GMS Prof Fees Dispensing,PRC DELEGATED CO-COMMISSIONING,OUGHTIBRIDGE SURGERY,18169206,"4,919.38 "
Department of Health,NHS Sheffield CCG,31/07/2017,C&M-GMS PrscrptnChrgsColl&RmttdbyGP,LOCAL ENHANCED SERVICES,OUGHTIBRIDGE SURGERY,18169206,739.60 
Department of Health,NHS Sheffield CCG,31/07/2017,C&M-GMS QOF Aspiration,PRC DELEGATED CO-COMMISSIONING,OUGHTIBRIDGE SURGERY,18169206,"4,693.88 "
Department of Health,NHS Sheffield CCG,31/07/2017,C&M-GMS Cost of Drugs -Prescribing,LOCAL ENHANCED SERVICES,SHARROW LANE MEDICAL CENTRE,18169211,300.25 
Department of Health,NHS Sheffield CCG,31/07/2017,C&M-GMS Global Sum,PRC DELEGATED CO-COMMISSIONING,SHARROW LANE MEDICAL CENTRE,18169211,"21,737.40 "
Department of Health,NHS Sheffield CCG,31/07/2017,C&M-GMS MPIG Correction Factor,PRC DELEGATED CO-COMMISSIONING,SHARROW LANE MEDICAL CENTRE,18169211,"2,940.48 "
Department of Health,NHS Sheffield CCG,31/07/2017,C&M-GMS Prem Notional Rent,PRC DELEGATED CO-COMMISSIONING,SHARROW LANE MEDICAL CENTRE,18169211,"2,658.33 "
Department of Health,NHS Sheffield CCG,31/07/2017,C&M-GMS Prem Rates,PRC DELEGATED CO-COMMISSIONING,SHARROW LANE MEDICAL CENTRE,18169211,467.00 
Department of Health,NHS Sheffield CCG,31/07/2017,C&M-GMS Prof Fees Prescribing,PRC DELEGATED CO-COMMISSIONING,SHARROW LANE MEDICAL CENTRE,18169211,46.28 
Department of Health,NHS Sheffield CCG,31/07/2017,C&M-GMS QOF Aspiration,PRC DELEGATED CO-COMMISSIONING,SHARROW LANE MEDICAL CENTRE,18169211,"2,727.76 "
Department of Health,NHS Sheffield CCG,31/07/2017,C&M-GMS Cost of Drugs -Prescribing,LOCAL ENHANCED SERVICES,SHIREGREEN MEDICAL CENTRE,18169219,"3,171.96 "
Department of Health,NHS Sheffield CCG,31/07/2017,C&M-GMS Global Sum,PRC DELEGATED CO-COMMISSIONING,SHIREGREEN MEDICAL CENTRE,18169219,"55,473.08 "
Department of Health,NHS Sheffield CCG,31/07/2017,C&M-GMS MPIG Correction Factor,PRC DELEGATED CO-COMMISSIONING,SHIREGREEN MEDICAL CENTRE,18169219,680.53 
Department of Health,NHS Sheffield CCG,31/07/2017,C&M-GMS PCO Other,PRC DELEGATED CO-COMMISSIONING,SHIREGREEN MEDICAL CENTRE,18169219,452.60 
Department of Health,NHS Sheffield CCG,31/07/2017,C&M-GMS Prem Cost Rent,PRC DELEGATED CO-COMMISSIONING,SHIREGREEN MEDICAL CENTRE,18169219,"1,792.33 "
Department of Health,NHS Sheffield CCG,31/07/2017,C&M-GMS Prem Notional Rent,PRC DELEGATED CO-COMMISSIONING,SHIREGREEN MEDICAL CENTRE,18169219,"7,032.26 "
Department of Health,NHS Sheffield CCG,31/07/2017,C&M-GMS Prem Rates,PRC DELEGATED CO-COMMISSIONING,SHIREGREEN MEDICAL CENTRE,18169219,"1,877.00 "
Department of Health,NHS Sheffield CCG,31/07/2017,C&M-GMS Prof Fees Prescribing,PRC DELEGATED CO-COMMISSIONING,SHIREGREEN MEDICAL CENTRE,18169219,360.98 
Department of Health,NHS Sheffield CCG,31/07/2017,C&M-GMS QOF Aspiration,PRC DELEGATED CO-COMMISSIONING,SHIREGREEN MEDICAL CENTRE,18169219,"6,614.14 "
Department of Health,NHS Sheffield CCG,31/07/2017,C&M-GMS Cost of Drugs -Prescribing,LOCAL ENHANCED SERVICES,STONECROFT MEDICAL CENTRE,18169221,675.41 
Department of Health,NHS Sheffield CCG,31/07/2017,C&M-GMS Global Sum,PRC DELEGATED CO-COMMISSIONING,STONECROFT MEDICAL CENTRE,18169221,"29,844.25 "
Department of Health,NHS Sheffield CCG,31/07/2017,C&M-GMS MPIG Correction Factor,PRC DELEGATED CO-COMMISSIONING,STONECROFT MEDICAL CENTRE,18169221,927.38 
Department of Health,NHS Sheffield CCG,31/07/2017,C&M-GMS PCO Other,PRC DELEGATED CO-COMMISSIONING,STONECROFT MEDICAL CENTRE,18169221,384.50 
Department of Health,NHS Sheffield CCG,31/07/2017,C&M-GMS Prem Notional Rent,PRC DELEGATED CO-COMMISSIONING,STONECROFT MEDICAL CENTRE,18169221,"2,808.33 "
Department of Health,NHS Sheffield CCG,31/07/2017,C&M-GMS Prem Rates,PRC DELEGATED CO-COMMISSIONING,STONECROFT MEDICAL CENTRE,18169221,"1,083.00 "
Department of Health,NHS Sheffield CCG,31/07/2017,C&M-GMS Prem Water Rates,PRC DELEGATED CO-COMMISSIONING,STONECROFT MEDICAL CENTRE,18169221,552.36 
Department of Health,NHS Sheffield CCG,31/07/2017,C&M-GMS Prof Fees Prescribing,PRC DELEGATED CO-COMMISSIONING,STONECROFT MEDICAL CENTRE,18169221,134.21 
Department of Health,NHS Sheffield CCG,31/07/2017,C&M-GMS QOF Aspiration,PRC DELEGATED CO-COMMISSIONING,STONECROFT MEDICAL CENTRE,18169221,"4,224.91 "
Department of Health,NHS Sheffield CCG,31/07/2017,C&M-GMS Cost of Drugs -Prescribing,LOCAL ENHANCED SERVICES,STANNINGTON MEDICAL CENTRE,18169223,411.55 
Department of Health,NHS Sheffield CCG,31/07/2017,C&M-GMS DES UNPLANNED ADMISSIONS,PRC DELEGATED CO-COMMISSIONING,STANNINGTON MEDICAL CENTRE,18169223,"2,365.44 "
Department of Health,NHS Sheffield CCG,31/07/2017,C&M-GMS Global Sum,PRC DELEGATED CO-COMMISSIONING,STANNINGTON MEDICAL CENTRE,18169223,"22,713.77 "
Department of Health,NHS Sheffield CCG,31/07/2017,C&M-GMS PCO Other,PRC DELEGATED CO-COMMISSIONING,STANNINGTON MEDICAL CENTRE,18169223,384.50 
Department of Health,NHS Sheffield CCG,31/07/2017,C&M-GMS PCO Seniority,PRC DELEGATED CO-COMMISSIONING,STANNINGTON MEDICAL CENTRE,18169223,"1,477.36 "
Department of Health,NHS Sheffield CCG,31/07/2017,C&M-GMS Prem Notional Rent,PRC DELEGATED CO-COMMISSIONING,STANNINGTON MEDICAL CENTRE,18169223,"2,533.33 "
Department of Health,NHS Sheffield CCG,31/07/2017,C&M-GMS Prem Rates,PRC DELEGATED CO-COMMISSIONING,STANNINGTON MEDICAL CENTRE,18169223,482.00 
Department of Health,NHS Sheffield CCG,31/07/2017,C&M-GMS Prem Water Rates,PRC DELEGATED CO-COMMISSIONING,STANNINGTON MEDICAL CENTRE,18169223,194.77 
Department of Health,NHS Sheffield CCG,31/07/2017,C&M-GMS Prof Fees Prescribing,PRC DELEGATED CO-COMMISSIONING,STANNINGTON MEDICAL CENTRE,18169223,46.28 
Department of Health,NHS Sheffield CCG,31/07/2017,C&M-GMS QOF Aspiration,PRC DELEGATED CO-COMMISSIONING,STANNINGTON MEDICAL CENTRE,18169223,"3,253.08 "
Department of Health,NHS Sheffield CCG,31/07/2017,C&M-GMS Cost of Drugs -Prescribing,LOCAL ENHANCED SERVICES,TRAMWAYS MEDICAL CENTRE,18169226,"1,268.26 "
Department of Health,NHS Sheffield CCG,31/07/2017,C&M-GMS Global Sum,PRC DELEGATED CO-COMMISSIONING,TRAMWAYS MEDICAL CENTRE,18169226,"58,565.01 "
Department of Health,NHS Sheffield CCG,31/07/2017,C&M-GMS PCO Other,PRC DELEGATED CO-COMMISSIONING,TRAMWAYS MEDICAL CENTRE,18169226,452.60 
Department of Health,NHS Sheffield CCG,31/07/2017,C&M-GMS Prem Cost Rent,PRC DELEGATED CO-COMMISSIONING,TRAMWAYS MEDICAL CENTRE,18169226,"4,012.75 "
Department of Health,NHS Sheffield CCG,31/07/2017,C&M-GMS Prem Rates,PRC DELEGATED CO-COMMISSIONING,TRAMWAYS MEDICAL CENTRE,18169226,889.00 
Department of Health,NHS Sheffield CCG,31/07/2017,C&M-GMS Prof Fees Prescribing,PRC DELEGATED CO-COMMISSIONING,TRAMWAYS MEDICAL CENTRE,18169226,242.96 
Department of Health,NHS Sheffield CCG,31/07/2017,C&M-GMS QOF Aspiration,PRC DELEGATED CO-COMMISSIONING,TRAMWAYS MEDICAL CENTRE,18169226,"6,336.58 "
Department of Health,NHS Sheffield CCG,31/07/2017,C&M-GMS Cost of Drugs -Prescribing,LOCAL ENHANCED SERVICES,UPPERTHORPE MEDICAL CENTRE,18169229,"4,477.56 "
Department of Health,NHS Sheffield CCG,31/07/2017,C&M-GMS Global Sum,PRC DELEGATED CO-COMMISSIONING,UPPERTHORPE MEDICAL CENTRE,18169229,"75,439.39 "
Department of Health,NHS Sheffield CCG,31/07/2017,C&M-GMS MPIG Correction Factor,PRC DELEGATED CO-COMMISSIONING,UPPERTHORPE MEDICAL CENTRE,18169229,"1,988.60 "
Department of Health,NHS Sheffield CCG,31/07/2017,C&M-GMS Prem Notional Rent,PRC DELEGATED CO-COMMISSIONING,UPPERTHORPE MEDICAL CENTRE,18169229,"2,497.83 "
Department of Health,NHS Sheffield CCG,31/07/2017,C&M-GMS Prem Rates,PRC DELEGATED CO-COMMISSIONING,UPPERTHORPE MEDICAL CENTRE,18169229,"2,044.00 "
Department of Health,NHS Sheffield CCG,31/07/2017,C&M-GMS Prem Water Rates,PRC DELEGATED CO-COMMISSIONING,UPPERTHORPE MEDICAL CENTRE,18169229,570.88 
Department of Health,NHS Sheffield CCG,31/07/2017,C&M-GMS Prof Fees Prescribing,PRC DELEGATED CO-COMMISSIONING,UPPERTHORPE MEDICAL CENTRE,18169229,502.14 
Department of Health,NHS Sheffield CCG,31/07/2017,C&M-GMS QOF Aspiration,PRC DELEGATED CO-COMMISSIONING,UPPERTHORPE MEDICAL CENTRE,18169229,"9,309.14 "
Department of Health,NHS Sheffield CCG,31/07/2017,C&M-GMS Cost of Drugs -Prescribing,LOCAL ENHANCED SERVICES,WHITE HOUSE SURGERY SHEFFIELD,18169233,"1,335.67 "
Department of Health,NHS Sheffield CCG,31/07/2017,C&M-GMS Global Sum,PRC DELEGATED CO-COMMISSIONING,WHITE HOUSE SURGERY SHEFFIELD,18169233,"46,834.45 "
Department of Health,NHS Sheffield CCG,31/07/2017,C&M-GMS MPIG Correction Factor,PRC DELEGATED CO-COMMISSIONING,WHITE HOUSE SURGERY SHEFFIELD,18169233,"2,086.94 "
Department of Health,NHS Sheffield CCG,31/07/2017,C&M-GMS Prem Notional Rent,PRC DELEGATED CO-COMMISSIONING,WHITE HOUSE SURGERY SHEFFIELD,18169233,"9,104.17 "
Department of Health,NHS Sheffield CCG,31/07/2017,C&M-GMS Prem Rates,PRC DELEGATED CO-COMMISSIONING,WHITE HOUSE SURGERY SHEFFIELD,18169233,"2,013.00 "
Department of Health,NHS Sheffield CCG,31/07/2017,C&M-GMS Prof Fees Prescribing,PRC DELEGATED CO-COMMISSIONING,WHITE HOUSE SURGERY SHEFFIELD,18169233,249.92 
Department of Health,NHS Sheffield CCG,31/07/2017,C&M-GMS QOF Aspiration,PRC DELEGATED CO-COMMISSIONING,WHITE HOUSE SURGERY SHEFFIELD,18169233,"6,083.99 "
Department of Health,NHS Sheffield CCG,31/07/2017,C&M-GMS Cost of Drugs -Prescribing,LOCAL ENHANCED SERVICES,WALKLEY HOUSE MEDICAL CENTRE,18169235,"1,388.23 "
Department of Health,NHS Sheffield CCG,31/07/2017,C&M-GMS Global Sum,PRC DELEGATED CO-COMMISSIONING,WALKLEY HOUSE MEDICAL CENTRE,18169235,"77,980.42 "
Department of Health,NHS Sheffield CCG,31/07/2017,C&M-GMS Prem Notional Rent,PRC DELEGATED CO-COMMISSIONING,WALKLEY HOUSE MEDICAL CENTRE,18169235,"5,581.34 "
Department of Health,NHS Sheffield CCG,31/07/2017,C&M-GMS Prof Fees Prescribing,PRC DELEGATED CO-COMMISSIONING,WALKLEY HOUSE MEDICAL CENTRE,18169235,201.32 
Department of Health,NHS Sheffield CCG,31/07/2017,C&M-GMS QOF Aspiration,PRC DELEGATED CO-COMMISSIONING,WALKLEY HOUSE MEDICAL CENTRE,18169235,"8,922.54 "
Department of Health,NHS Sheffield CCG,31/07/2017,C&M-GMS Cost of Drugs -Prescribing,LOCAL ENHANCED SERVICES,FLOWERS HEALTH CENTRE,18169239,"1,043.90 "
Department of Health,NHS Sheffield CCG,31/07/2017,C&M-GMS Global Sum,PRC DELEGATED CO-COMMISSIONING,FLOWERS HEALTH CENTRE,18169239,"33,150.39 "
Department of Health,NHS Sheffield CCG,31/07/2017,C&M-GMS MPIG Correction Factor,PRC DELEGATED CO-COMMISSIONING,FLOWERS HEALTH CENTRE,18169239,"2,214.46 "
Department of Health,NHS Sheffield CCG,31/07/2017,C&M-GMS Prem Healthcentre Rent,PRC DELEGATED CO-COMMISSIONING,FLOWERS HEALTH CENTRE,18169239,"32,996.55 "
Department of Health,NHS Sheffield CCG,31/07/2017,C&M-GMS Prof Fees Prescribing,PRC DELEGATED CO-COMMISSIONING,FLOWERS HEALTH CENTRE,18169239,141.15 
Department of Health,NHS Sheffield CCG,31/07/2017,C&M-GMS QOF Aspiration,PRC DELEGATED CO-COMMISSIONING,FLOWERS HEALTH CENTRE,18169239,"4,334.56 "
Department of Health,NHS Sheffield CCG,31/07/2017,Hcare Srv Rec Fdtn Trust-Non Contract,NCAS/OATS,UNIVERSITY HOSPITALS OF MORECAMBE BAY NHS FOUNDATION TRUST,18178211,"33,558.51 "
Department of Health,NHS Sheffield CCG,31/07/2017,C&M-GMS Cost of Drugs -Prescribing,LOCAL ENHANCED SERVICES,GREYSTONES MEDICAL CENTRE,18189276,273.07 
Department of Health,NHS Sheffield CCG,31/07/2017,C&M-GMS Global Sum,PRC DELEGATED CO-COMMISSIONING,GREYSTONES MEDICAL CENTRE,18189276,"18,375.45 "
Department of Health,NHS Sheffield CCG,31/07/2017,C&M-GMS MPIG Correction Factor,PRC DELEGATED CO-COMMISSIONING,GREYSTONES MEDICAL CENTRE,18189276,"1,656.69 "
Department of Health,NHS Sheffield CCG,31/07/2017,C&M-GMS PCO Locum Adop/Pat/Mat,PRC DELEGATED CO-COMMISSIONING,GREYSTONES MEDICAL CENTRE,18189276,"6,987.46 "
Department of Health,NHS Sheffield CCG,31/07/2017,C&M-GMS PCO Other,PRC DELEGATED CO-COMMISSIONING,GREYSTONES MEDICAL CENTRE,18189276,384.50 
Department of Health,NHS Sheffield CCG,31/07/2017,C&M-GMS Prem Notional Rent,PRC DELEGATED CO-COMMISSIONING,GREYSTONES MEDICAL CENTRE,18189276,"2,729.17 "
Department of Health,NHS Sheffield CCG,31/07/2017,C&M-GMS Prem Water Rates,PRC DELEGATED CO-COMMISSIONING,GREYSTONES MEDICAL CENTRE,18189276,80.80 
Department of Health,NHS Sheffield CCG,31/07/2017,C&M-GMS Prof Fees Prescribing,PRC DELEGATED CO-COMMISSIONING,GREYSTONES MEDICAL CENTRE,18189276,55.54 
Department of Health,NHS Sheffield CCG,31/07/2017,C&M-GMS QOF Aspiration,PRC DELEGATED CO-COMMISSIONING,GREYSTONES MEDICAL CENTRE,18189276,"2,071.10 "
Department of Health,NHS Sheffield CCG,31/07/2017,C&M-GMS Cost of Drugs -Prescribing,LOCAL ENHANCED SERVICES,HOLLIES MEDICAL CENTRE,18189277,"1,441.01 "
Department of Health,NHS Sheffield CCG,31/07/2017,C&M-GMS Global Sum,PRC DELEGATED CO-COMMISSIONING,HOLLIES MEDICAL CENTRE,18189277,"52,067.42 "
Department of Health,NHS Sheffield CCG,31/07/2017,C&M-GMS MPIG Correction Factor,PRC DELEGATED CO-COMMISSIONING,HOLLIES MEDICAL CENTRE,18189277,"2,179.09 "
Department of Health,NHS Sheffield CCG,31/07/2017,C&M-GMS PCO Other,PRC DELEGATED CO-COMMISSIONING,HOLLIES MEDICAL CENTRE,18189277,452.60 
Department of Health,NHS Sheffield CCG,31/07/2017,C&M-GMS Prem Notional Rent,PRC DELEGATED CO-COMMISSIONING,HOLLIES MEDICAL CENTRE,18189277,"3,229.17 "
Department of Health,NHS Sheffield CCG,31/07/2017,C&M-GMS Prem Rates,PRC DELEGATED CO-COMMISSIONING,HOLLIES MEDICAL CENTRE,18189277,"1,188.00 "
Department of Health,NHS Sheffield CCG,31/07/2017,C&M-GMS Prem Water Rates,PRC DELEGATED CO-COMMISSIONING,HOLLIES MEDICAL CENTRE,18189277,278.36 
Department of Health,NHS Sheffield CCG,31/07/2017,C&M-GMS Prof Fees Prescribing,PRC DELEGATED CO-COMMISSIONING,HOLLIES MEDICAL CENTRE,18189277,150.40 
Department of Health,NHS Sheffield CCG,31/07/2017,C&M-GMS QOF Aspiration,PRC DELEGATED CO-COMMISSIONING,HOLLIES MEDICAL CENTRE,18189277,"6,561.21 "
Department of Health,NHS Sheffield CCG,31/07/2017,C&M-GMS Cost of Drugs -Prescribing,LOCAL ENHANCED SERVICES,MATHEWS PRACTICE,18189278,729.44 
Department of Health,NHS Sheffield CCG,31/07/2017,C&M-GMS Global Sum,PRC DELEGATED CO-COMMISSIONING,MATHEWS PRACTICE,18189278,"65,707.91 "
Department of Health,NHS Sheffield CCG,31/07/2017,C&M-GMS MPIG Correction Factor,PRC DELEGATED CO-COMMISSIONING,MATHEWS PRACTICE,18189278,898.44 
Department of Health,NHS Sheffield CCG,31/07/2017,C&M-GMS Prem Notional Rent,PRC DELEGATED CO-COMMISSIONING,MATHEWS PRACTICE,18189278,"8,583.34 "
Department of Health,NHS Sheffield CCG,31/07/2017,C&M-GMS Prem Rates,PRC DELEGATED CO-COMMISSIONING,MATHEWS PRACTICE,18189278,"1,757.00 "
Department of Health,NHS Sheffield CCG,31/07/2017,C&M-GMS Prof Fees Prescribing,PRC DELEGATED CO-COMMISSIONING,MATHEWS PRACTICE,18189278,173.54 
Department of Health,NHS Sheffield CCG,31/07/2017,C&M-GMS QOF Achievement,PRC DELEGATED CO-COMMISSIONING,MATHEWS PRACTICE,18189278,"18,881.77 "
Department of Health,NHS Sheffield CCG,31/07/2017,C&M-GMS QOF Aspiration,PRC DELEGATED CO-COMMISSIONING,MATHEWS PRACTICE,18189278,"9,686.98 "
Department of Health,NHS Sheffield CCG,31/07/2017,C&M-GMS Cost of Drugs -Prescribing,LOCAL ENHANCED SERVICES,NORFOLK PARK HEALTH CENTRE,18189279,454.75 
Department of Health,NHS Sheffield CCG,31/07/2017,C&M-GMS Global Sum,PRC DELEGATED CO-COMMISSIONING,NORFOLK PARK HEALTH CENTRE,18189279,"33,821.75 "
Department of Health,NHS Sheffield CCG,31/07/2017,C&M-GMS MPIG Correction Factor,PRC DELEGATED CO-COMMISSIONING,NORFOLK PARK HEALTH CENTRE,18189279,"1,386.91 "
Department of Health,NHS Sheffield CCG,31/07/2017,C&M-GMS PCO Other,PRC DELEGATED CO-COMMISSIONING,NORFOLK PARK HEALTH CENTRE,18189279,"3,845.00 "
Department of Health,NHS Sheffield CCG,31/07/2017,C&M-GMS Prem Healthcentre Rent,PRC DELEGATED CO-COMMISSIONING,NORFOLK PARK HEALTH CENTRE,18189279,"21,922.34 "
Department of Health,NHS Sheffield CCG,31/07/2017,C&M-GMS Prof Fees Prescribing,PRC DELEGATED CO-COMMISSIONING,NORFOLK PARK HEALTH CENTRE,18189279,175.87 
Department of Health,NHS Sheffield CCG,31/07/2017,C&M-GMS QOF Aspiration,PRC DELEGATED CO-COMMISSIONING,NORFOLK PARK HEALTH CENTRE,18189279,"4,068.39 "
Department of Health,NHS Sheffield CCG,31/07/2017,C&M-GMS Cost of Drugs -Prescribing,LOCAL ENHANCED SERVICES,TOTLEY RISE MEDICAL CENTRE,18189280,299.14 
Department of Health,NHS Sheffield CCG,31/07/2017,C&M-GMS Global Sum,PRC DELEGATED CO-COMMISSIONING,TOTLEY RISE MEDICAL CENTRE,18189280,"21,982.63 "
Department of Health,NHS Sheffield CCG,31/07/2017,C&M-GMS MPIG Correction Factor,PRC DELEGATED CO-COMMISSIONING,TOTLEY RISE MEDICAL CENTRE,18189280,154.70 
Department of Health,NHS Sheffield CCG,31/07/2017,C&M-GMS PCO Locum Adop/Pat/Mat,PRC DELEGATED CO-COMMISSIONING,TOTLEY RISE MEDICAL CENTRE,18189280,"7,367.60 "
Department of Health,NHS Sheffield CCG,31/07/2017,C&M-GMS PCO Other,PRC DELEGATED CO-COMMISSIONING,TOTLEY RISE MEDICAL CENTRE,18189280,384.50 
Department of Health,NHS Sheffield CCG,31/07/2017,C&M-GMS Prem Notional Rent,PRC DELEGATED CO-COMMISSIONING,TOTLEY RISE MEDICAL CENTRE,18189280,"1,491.67 "
Department of Health,NHS Sheffield CCG,31/07/2017,C&M-GMS Prem Rates,PRC DELEGATED CO-COMMISSIONING,TOTLEY RISE MEDICAL CENTRE,18189280,136.00 
Department of Health,NHS Sheffield CCG,31/07/2017,C&M-GMS Prof Fees Prescribing,PRC DELEGATED CO-COMMISSIONING,TOTLEY RISE MEDICAL CENTRE,18189280,48.59 
Department of Health,NHS Sheffield CCG,31/07/2017,C&M-GMS QOF Aspiration,PRC DELEGATED CO-COMMISSIONING,TOTLEY RISE MEDICAL CENTRE,18189280,"2,269.92 "
Department of Health,NHS Sheffield CCG,31/07/2017,Clinical&Medical-Voluntary Sector,COMMUNITY SERVICES,AGE UK SHEFFIELD,18202430,"30,000.00 "
Department of Health,NHS Sheffield CCG,31/07/2017,Cont Care-Physical Disab (65+),CHC ADULT FULLY FUNDED,BC SHEFFIELD LTD,18207107,"35,793.31 "
Department of Health,NHS Sheffield CCG,31/07/2017,C&M-GMS LES CCGLcltyExec&Clin Leads,LOCAL ENHANCED SERVICES,WEST WAKEFIELD HEALTH & WELLBEING,18207118,"27,000.00 "
Department of Health,NHS Sheffield CCG,31/07/2017,Clinical&Medical-Othe Public Sector,COMMUNITY SERVICES,SHEFFIELD CITY COUNCIL,18213141,"21,831.00 "
Department of Health,NHS Sheffield CCG,31/07/2017,Clinical&Medical-Othe Public Sector,MENTAL HEALTH SERVICES - COLLABORATIVE COMMISSIONING,SHEFFIELD CITY COUNCIL,18213141,"16,919.00 "
Department of Health,NHS Sheffield CCG,31/07/2017,Clinical&Medical-Othe Public Sector,REABLEMENT,SHEFFIELD CITY COUNCIL,18213141,"160,417.00 "
Department of Health,NHS Sheffield CCG,31/07/2017,Clinical&Medical-Othe Public Sector,SAFEGUARDING,SHEFFIELD CITY COUNCIL,18213141,"15,324.00 "
Department of Health,NHS Sheffield CCG,31/07/2017,Soc Care-Joint H&C Teams/Working,INTERMEDIATE CARE,SHEFFIELD CITY COUNCIL,18213141,"88,060.00 "
Department of Health,NHS Sheffield CCG,31/07/2017,Soc Care-Learn Disab Servs,LEARNING DIFFICULTIES,SHEFFIELD CITY COUNCIL,18213141,"166,667.00 "
Department of Health,NHS Sheffield CCG,31/07/2017,Soc Care-Other Soc Care,COMMUNITY SERVICES,SHEFFIELD CITY COUNCIL,18213141,"1,467,750.00 "
Department of Health,NHS Sheffield CCG,31/07/2017,Soc Care-Re-ablement services,REABLEMENT,SHEFFIELD CITY COUNCIL,18213141,"63,387.00 "
Department of Health,NHS Sheffield CCG,31/07/2017,Soc Care-Support Prim Care,COMMUNITY SERVICES,SHEFFIELD CITY COUNCIL,18213141,"41,667.00 "
Department of Health,NHS Sheffield CCG,31/07/2017,Services From Local Authorities,MENTAL HEALTH SERVICES - COLLABORATIVE COMMISSIONING,SHEFFIELD CITY COUNCIL,18213196,"48,000.00 "
Department of Health,NHS Sheffield CCG,31/07/2017,Services From Local Authorities,MENTAL HEALTH SERVICES - COLLABORATIVE COMMISSIONING,SHEFFIELD CITY COUNCIL,18213221,"60,000.00 "
Department of Health,NHS Sheffield CCG,31/07/2017,Services From Local Authorities,MENTAL HEALTH SERVICES - COLLABORATIVE COMMISSIONING,SHEFFIELD CITY COUNCIL,18213231,"48,000.00 "
Department of Health,NHS Sheffield CCG,31/07/2017,Services From Local Authorities,MENTAL HEALTH SERVICES - COLLABORATIVE COMMISSIONING,SHEFFIELD CITY COUNCIL,18213268,"(60,000.00)"
Department of Health,NHS Sheffield CCG,31/07/2017,Services From Local Authorities,MENTAL HEALTH SERVICES - COLLABORATIVE COMMISSIONING,SHEFFIELD CITY COUNCIL,18213286,"50,000.00 "
Department of Health,NHS Sheffield CCG,31/07/2017,Services From Local Authorities,MENTAL HEALTH SERVICES - COLLABORATIVE COMMISSIONING,SHEFFIELD CITY COUNCIL,18213301,"(48,000.00)"
Department of Health,NHS Sheffield CCG,31/07/2017,Clinical&Medical-Commercial Sector,PATIENT TRANSPORT,NORTHERN TAXIS LTD,18213370,"141,864.60 "
Department of Health,NHS Sheffield CCG,31/07/2017,Hcare Srv Rec Fdtn Trust-Contract Baseline,IMPROVING ACCESS TO PSYCHOLOGICAL THERAPIES,SHEFFIELD HEALTH & SOCIAL CARE NHS FOUNDATION TRUST,18218168,"1,811,962.00 "
Department of Health,NHS Sheffield CCG,31/07/2017,Hcare Srv Rec Fdtn Trust-Contract Baseline,MENTAL HEALTH CONTRACTS,SHEFFIELD HEALTH & SOCIAL CARE NHS FOUNDATION TRUST,18218168,"536,000.00 "
Department of Health,NHS Sheffield CCG,31/07/2017,Hcare Srv Rec Fdtn Trust-Contract Baseline,ACUTE COMMISSIONING,BARNSLEY HOSPITAL NHS FOUNDATION TRUST,18227052,"72,098.00 "
Department of Health,NHS Sheffield CCG,31/07/2017,Cont Care-Physical Disab (65+),CHC ADULT FULLY FUNDED,ABBEYCARE NURSING,18241065,"49,782.90 "
Department of Health,NHS Sheffield CCG,31/07/2017,C&M-APMS LES Translation Fees,LOCAL ENHANCED SERVICES,SHEFFIELD HEALTH & SOCIAL CARE NHS FOUNDATION TRUST,18242722,"57,500.00 "
,,,,,,,"55,127,619.49 "
